{"text_format":"1","workbook":"xlsx","n_sheets":15,"sheets":["Datenblatt","Titel","Fragen VN","Haftung 1","Haftung 2","Antragsrückseite 1","Antragsrückseite 2","Antragsrückseite 3","Verzichtserklärung - Übergabe","Verzichtserklärung - Beratung","R+V Beratungsprotokoll","Merkblatt - Datenverarbeitung","Tariftabelle","Datenzuordnung","Hektarwerte"],"not_rendered":{"charts":0,"images":17,"macros":1,"external_links":13,"defined_names":2228,"comments":1,"pivot_tables":0},"unopened":[],"bounds":{"document_bytes":16777216,"sheet_cells":100000,"rows_first":2000,"rows_last":500,"rows_between":2000,"halvings":0,"cell_chars":16384,"cell_head_chars":4096},"cells_cut":0,"cells_raw":0,"read":"whole","date_system":"1900"}

{"sheet":"Datenblatt","index":0,"n_rows":82,"n_cols":12,"rows_kept":82,"cut":false,"hidden":true,"merged":[[0,0,0,1],[1,0,1,1]]}
["Internes Dateneingabeblatt "]
[{"$f":"IF(OR(B59>5000000,'Fragen VN'!AQ31<>\"D\"),\"Direktionsvorlage\",\" \")","v":"Direktionsvorlage"},null,null,null,null,null,null,null,null,null,{"$f":"IF(OR('Fragen VN'!AS50>5000,'Fragen VN'!AS52>5000),\"Direktionsvorlage\")","v":false}]
["Matchcode",{"$f":"G3&H3&I3&J3","v":"    "},null,null,null,null,{"$f":"LEFT(B7,6)&\" \"","v":" "},{"$f":"\" \"&LEFT(B8,1)&\" \"","v":"  "},{"$f":"B9&\" \"","v":" "},{"$f":"LEFT(B10,1)","v":""}]
["Kundennummer",{"$f":"IF('Fragen VN'!AQ15=0,\"\",'Fragen VN'!AQ15)","v":""}]
["Anrede",{"$f":"'Fragen VN'!AQ16","v":5}]
["Titel",{"$f":"IF('Fragen VN'!AQ19=0,\"\",'Fragen VN'!AQ19)","v":""}]
["Name",{"$f":"IF('Fragen VN'!AS19=0,\"\",'Fragen VN'!AS19)","v":""}]
["Vorname",{"$f":"IF('Fragen VN'!AR19=0,\"\",'Fragen VN'!AR19)","v":""}]
["PLZ",{"$f":"IF('Fragen VN'!AQ27=0,\"\",'Fragen VN'!AQ27)","v":""}]
["Ort",{"$f":"IF('Fragen VN'!AR27=0,\"\",'Fragen VN'!AR27)","v":""}]
["Straße",{"$f":"IF('Fragen VN'!AQ23=0,\"\",'Fragen VN'!AQ23)","v":""}]
["Hausnummer",{"$f":"IF('Fragen VN'!AR23=0,\"\",'Fragen VN'!AR23)","v":""}]
["Zustellvermerk",{"$f":"IF('Fragen VN'!AQ22=0,\"\",'Fragen VN'!AQ22)","v":""}]
["Land","D"]
["Geburtsdatum",{"$f":"IF('Fragen VN'!AQ29=0,\"\",'Fragen VN'!AQ29)","v":""}]
["Telefon",{"$f":"IF('Fragen VN'!AQ25=0,\"\",'Fragen VN'!AQ25)","v":""}]
["Email",{"$f":"IF('Fragen VN'!AQ38=0,\"\",'Fragen VN'!AQ38)","v":""}]
["Telefon Werbung",{"$f":"IF('Fragen VN'!AS36=TRUE,\"ja\",\"nein\")","v":"nein"}]
["E-Mail Werbung",{"$f":"IF('Fragen VN'!AT36=TRUE,\"ja\",\"nein\")","v":"nein"}]
["Schriftliche Werbung",{"$f":"IF('Fragen VN'!AR36=TRUE,\"ja\",\"nein\")","v":"nein"}]
["Datenweitergabe","2","??"]
["Arbeitsgebiet",21]
["Vertrags VA (Antrag neu =10)",{"$f":"IF('Fragen VN'!AP14=1,\"10\",\"20\")","v":"10"}]
["Agenturnummer",{"$f":"'Fragen VN'!AR16","v":0}]
["Beginn",{"$f":"'Haftung 2'!AL29","v":"00:00:00"},null,{"$f":"DAY(B25)","v":0},{"$f":"MONTH(B25)","v":1},{"$f":"YEAR(B25)","v":1900}]
["Hauptfälligkeit",{"$f":"\"01\"&LEFT('Haftung 2'!Y28,2)","v":"0101"}]
["Eingang",{"$f":"TODAY()","v":"2021-12-17"}]
["Antragsunterschrift",{"$f":"'Haftung 2'!L78","v":"00:00:00"}]
["Zahlungsweise",{"$f":"'Haftung 2'!S28","v":1}]
["Ratenzuschlag",0]
["Policenkategorie ","V"]
["Policenprodukt","VT0005"]
["Übergabedatum Unterlagen",{"$f":"'Haftung 2'!L14","v":"00:00:00"}]
["Zahlweg",{"$f":"IF(B35<>0,\"L\",\"Z\")","v":"Z"}]
["IBAN",{"$f":"'Haftung 2'!B43","v":0}]
["Bank",{"$f":"'Haftung 2'!AN43","v":0}]
["Vertrag",{"$f":"IF('Haftung 1'!AN33=1,\"VVG500\",\"VVG501\")","v":"VVG500"}]
["Vertragsnummer","001"]
["Ablauf",{"$f":"'Haftung 2'!AP26","v":"01.01.1903"}]
["Bedingungen","EVT 2008"]
["Länderkennzeichen",{"$f":"'Fragen VN'!AQ31","v":0}]
["Abweichungsgrund Steuer",{"$f":"IF(B41<>\"D\",\"Direktionsvorlage\",\" \")","v":"Direktionsvorlage"}]
["Vertragsklausel",{"$f":"IF('Haftung 1'!AN33=1,\"VKASPOSB\",\"VKASPMSB\")","v":"VKASPOSB"}]
["Risikotyp",{"$f":"\"VR400P01\"","v":"VR400P01"}]
["Kulturart",101]
["Anzahl Schläge","1"]
["VSU EUR/ha",{"$f":"'Fragen VN'!AT90/'Fragen VN'!AR90","v":{"$error":"#DIV/0!"}}]
["Beitrag EUR je 1000 EUR VSU",{"$f":"'Haftung 1'!AO71/('Fragen VN'!AT90/1000)","v":{"$error":"#DIV/0!"}}]
["SF-Klasse","1"]
["Typ",21]
["Z-Text-Kennzeichen","V"]
["Z-Text 1. Zeile",{"$f":"\"Gesamtfläche: \"&B58&\" ha\"","v":"Gesamtfläche: 0 ha"}]
["Z-Text 2. Zeile"]
["Z-Text 3. Zeile","Die angegebene Gesamtversicherungssumme ergibt"]
["Z-Text 4. Zeile","sich aus den im Antrag angegebenen Kulturarten"]
["Z-Text 5. Zeile","sowie deren Anbauflächen und Hektarwerten"]
["Z-Text 6. Zeile","(vgl. Anbauverzeichnis im Antrag)."]
["Gesamtfläche",{"$f":"'Fragen VN'!AR90","v":0}]
["Gesamtversicherungssumme",{"$f":"'Fragen VN'!AT90","v":0}]
["Beitragssatz",{"$f":"Tariftabelle!E28*100","v":0.35000000000000003}]
["Haftzeit",{"$f":"IF('Haftung 1'!AN31=1,\"12 Monate\",IF('Haftung 1'!AN31=2,\"18 Monate\",\"24 Monate\"))","v":"12 Monate"}]
["Höchstentschädigung",{"$f":"IF('Haftung 1'!AN31=1,5000000,IF('Haftung 1'!AN31=2,7500000,10000000))","v":5000000}]
["Dauernachlass",{"$f":"IF(B64>0,\"VR011\",\"\")","v":{"$error":"#DIV/0!"}}]
["Dauernachlass Höhe",{"$f":"'Haftung 1'!AQ71*100","v":{"$error":"#DIV/0!"}}]
["Bündelrabatt",{"$f":"IF(B66>0,\"VR010\",\"\")","v":{"$error":"#DIV/0!"}}]
["Bündelrabatt Höhe",{"$f":"'Haftung 1'!AP71*100","v":{"$error":"#DIV/0!"}}]
["VSNR Agrarpolice",{"$f":"'Haftung 1'!X45&\" / \"&'Haftung 1'!Z45","v":"84 / "}]
["VSNR Unfallversicheurng",{"$f":"'Haftung 1'!AS49&\" / \"&'Haftung 1'!AT49","v":"10 / 0"}]
["VSNR Ertragsschadenversicheurng",{"$f":"'Haftung 1'!X53&\" / \"&'Haftung 1'!Z53","v":"21 / "}]
["VSNR Ernteversicheurng",{"$f":"'Haftung 1'!AT58","v":0}]
["MA-Nummer1",{"$f":"IF('Fragen VN'!AQ4=0,\"\",'Fragen VN'!AQ4)","v":""}]
["Stellennummer1",{"$f":"IF('Fragen VN'!AQ5=0,\"\",'Fragen VN'!AQ5)","v":""}]
["MA-Nummer2",{"$f":"IF('Fragen VN'!AR4=0,\"\",'Fragen VN'!AR4)","v":""}]
["Stellennummer2",{"$f":"IF('Fragen VN'!AR5=0,\"\",'Fragen VN'!AR5)","v":""}]
["Dok.erst.","J"]
["Rechnungsdruck","J"]
["Bedingungsheft",{"$f":"IF('Haftung 2'!AL10=TRUE,\"J\",\"N\")","v":"N"}]
["Übergabeart",{"$f":"IF('Haftung 2'!AL11=TRUE,\"M\",IF('Haftung 2'!AL17=TRUE,\"Q\",\"U\"))","v":"U"},null,null,null,null,null,null,null,null,"Unklar, Maklervollmacht, Verzichtserklärung"]
["Dokumentenversand","J"]
["Dokumentengründe","0001"]
["Text für Geschichtsbuch Zeile 1",{"$f":"\"NA ASP-Ernte per \"&DAY(B25)&\".\"&MONTH(B25)&\".\"&YEAR(B25)","v":"NA ASP-Ernte per 0.1.1900"}]
["Text für Geschichtsbuch Zeile 2",{"$f":"IF('Haftung 1'!AN31=1,\"HZ12 \",IF('Haftung 1'!AN31=2,\"HZ 18, \",\"HZ 24, \"))&IF('Haftung 1'!AN33=1,\"0%SB, \",\"20%SB, \")&IF(B64=10,\"10%DN, \",\"0%DN, \")&IF(L82=0,\"0%BN\",IF(OR(L82=1,L82=2),\"7,5%BN\",\"15% BN\"))","v":{"$error":"#DIV/0!"}},null,null,null,null,null,null,null,null,null,{"$f":"Datenzuordnung!G48","v":0}]

{"sheet":"Titel","index":1,"n_rows":0,"n_cols":0,"rows_kept":0,"cut":false,"hidden":false,"merged":[]}

{"sheet":"Fragen VN","index":2,"n_rows":96,"n_cols":46,"rows_kept":96,"cut":false,"hidden":false,"merged":[[27,33,27,38],[61,28,61,31],[61,33,61,37],[63,28,63,31],[63,33,63,37],[65,28,65,31],[65,33,65,37],[61,2,61,20],[61,22,61,26],[63,2,63,20],[63,22,63,26],[65,2,65,20],[65,22,65,26],[39,1,39,38],[47,33,47,38],[30,3,30,5],[32,26,32,38],[32,8,32,15],[32,17,32,24],[33,24,35,28],[51,22,51,26],[53,22,53,26],[49,28,49,31],[49,33,49,37],[71,2,71,20],[71,22,71,26],[71,28,71,31],[71,33,71,37],[67,2,67,20],[67,28,67,31],[67,33,67,37],[69,2,69,20],[69,22,69,26],[69,28,69,31],[69,33,69,37],[67,22,67,26],[83,2,83,20],[83,22,83,26],[83,28,83,31],[83,33,83,37],[92,42,92,43],[87,33,87,37],[87,28,87,31],[87,22,87,26],[87,2,87,20],[89,2,89,20],[89,22,89,26],[89,33,89,37],[85,33,85,37],[85,28,85,31],[85,22,85,26],[85,2,85,20],[90,2,90,37],[89,28,89,31],[79,28,79,31],[79,33,79,37],[81,2,81,20],[81,22,81,26],[81,28,81,31],[81,33,81,37],[79,2,79,20],[79,22,79,26],[73,2,73,20],[73,22,73,26],[73,28,73,31],[73,33,73,37],[75,2,75,20],[75,22,75,26],[75,28,75,31],[75,33,75,37],[77,2,77,20],[77,22,77,26],[77,28,77,31],[77,33,77,37],[49,22,49,26],[34,9,34,21],[37,1,37,38],[57,2,57,20],[57,22,57,26],[59,2,59,20],[59,22,59,26],[51,28,51,31],[51,33,51,37],[53,28,53,31],[53,33,53,37],[47,22,47,26],[47,28,47,31],[55,28,55,31],[55,33,55,37],[57,28,57,31],[57,33,57,37],[59,28,59,31],[59,33,59,37],[41,1,42,38],[29,29,29,32],[34,29,34,32],[26,1,26,11],[28,1,28,11],[24,33,24,38],[21,1,21,6],[16,1,16,3],[16,9,16,11],[26,13,26,23],[26,25,26,31],[24,1,24,5],[26,33,26,38],[16,24,16,30],[16,32,16,33],[30,7,30,8],[18,26,18,33],[18,24,18,25],[17,24,17,33],[20,36,20,38],[19,36,19,38],[18,36,18,38],[17,36,17,38],[16,36,16,38],[28,13,28,38],[25,25,25,31],[6,1,6,6],[6,8,6,9],[6,11,6,12],[6,15,6,17],[6,19,6,20],[6,22,6,23],[10,1,10,38],[16,12,16,13],[7,1,7,38],[12,1,12,38],[15,1,15,3],[15,9,15,14],[15,24,15,29],[19,1,19,9],[6,34,6,38],[6,25,6,26],[6,28,6,32],[20,1,20,33],[14,1,14,14],[21,22,21,27],[5,1,5,6],[24,7,24,31],[23,1,23,3],[5,21,5,26],[18,1,18,2],[18,4,18,9],[18,11,18,22],[22,22,22,33],[22,1,22,20],[3,1,3,26],[0,1,0,38],[3,28,3,32],[3,34,3,38],[2,1,2,9],[51,2,51,20],[53,2,53,20],[55,2,55,20],[55,22,55,26],[44,1,45,38],[46,1,46,38],[40,1,40,38],[49,2,49,20],[5,15,5,16],[5,12,5,13],[5,18,5,19],[16,14,16,22],[4,8,4,9],[4,1,4,6],[4,34,4,38],[5,34,5,38],[5,28,5,32],[4,28,4,32],[5,8,5,10]]}
[null,"Interne statistische Daten"]
[]
[null,"externe Mitarbeiter-Nr. / Bankmitarbeiter",null,null,null,null,null,null,null,null,null,null,null,null,null,null,null,null,null,null,null,null,null,null,null,null,null,null,"zusätzl. MA",null,null,null,null,null,"zusätzl. MA"]
[null,null,null,null,null,null,null,null,null,null,null,null,null,null,null,null,null,null,null,null,null,null,null,null,null,null,null,null,null,null,null,null,null,null,null,null,null,null,null,null,null,null,{"$f":"AC4","v":0},{"$f":"AI4","v":0}]
[null,"Fremdagentur",null,null,null,null,null,null,"AKT-KZ:",null,null,null,"Prod",null,null,"BVB",null,null,"Werb",null,null,"Telefon",null,null,null,null,null,null,"Stellen-Nr.",null,null,null,null,null,"Stellen-Nr.",null,null,null,null,null,null,null,{"$f":"AC6","v":0},{"$f":"AI6","v":0}]
[]
[null,"Bemerkungen"]
[null,"PFLICHTFELDER!! / Antrag erstellt mit Version 4.0 "]
[]
[]
[null,"Angaben des Antragstellers (Versicherungsnehmers)"]
[]
[null,"Bei c ist Zutreffendes anzukreuzen. Zutreffende Ziffern/Buchstaben bitte in die entsprechenden Datenfelder eintragen.",null,null,null,null,null,null,null,null,null,null,null,null,null,null,null,null,null,null,null,null,null,null,null,null,null,null,null,null,null,null,null,null,null,null,null,null,null,null,null,null,{"$f":"B17","v":0}]
[null,"Kundennummer",null,null,null,null,null,null,null,null,null,null,null,null,null,null,null,null,null,null,null,null,null,null,null,null,null,null,null,null,null,null,null,null,null,null,null,null,null,null,null,1,null,{"$f":"LEN(Y17)","v":0}]
[null,null,null,null,null,null,null,null,null,null,null,null,null,null,null,null,null,null,null,null,null,null,null,null,"AGT-Nr.: 6 Stellen ohne Leerzeichen",null,null,null,null,null,null,null,null,null,null,null,null,null,null,null,null,null,{"$f":"B15","v":0}]
[null,"FD-Nr.",null,null,null,null,null,null,null,"Versicherungsschein-Nr.",null,null,null,null,null,null,null,null,null,null,null,null,null,null,"Agentur-Nr.",null,null,null,null,null,null,null,"BG",null,null,"Anrede",null,null,null,null,null,null,{"$f":"Y19","v":5},{"$f":"Y17","v":0}]
[null,null,null,null,null,null,null,null,null,null,null,null,21,null,null,null,null,null,null,null,null,null,null,null,null,null,null,null,null,null,null,null,null,null,null,1,"Herr"]
[null,"Titel",null,null,"Vorname",null,null,null,null,null,null,"Name",null,null,null,null,null,null,null,null,null,null,null,null,"Anrede",null,null,null,null,null,null,null,null,null,null,2,"Frau",null,null,null,null,null,{"$f":"AA19","v":0}]
[null,null,null,null,null,null,null,null,null,null,null,null,null,null,null,null,null,null,null,null,null,null,null,null,5,null,{"$f":"VLOOKUP(Y19,Datenzuordnung!A34:B38,2)","v":0},null,null,null,null,null,null,null,null,3,"Herr und Frau",null,null,null,null,null,{"$f":"B19","v":0},{"$f":"E19","v":0},{"$f":"L19","v":0}]
[null,"Zustellvermerk / Namensergänzung",null,null,null,null,null,null,null,null,null,null,null,null,null,null,null,null,null,null,null,null,null,null,null,null,null,null,null,null,null,null,null,null,null,4,"Firma"]
[null,null,null,null,null,null,null,null,null,null,null,null,null,null,null,null,null,null,null,null,null,null,null,null,null,null,null,null,null,null,null,null,null,null,null,5]
[null,"Straße",null,null,null,null,null,null,null,null,null,null,null,null,null,null,null,null,null,null,null,null,"Hausnummer",null,null,null,null,null,null,null,null,null,null,null,null,null,null,null,null,null,null,null,{"$f":"B21","v":0}]
[null,null,null,null,null,null,null,null,null,null,null,null,null,null,null,null,null,null,null,null,null,null,null,null,null,null,null,null,null,null,null,null,null,null,null,null,null,null,null,null,null,null,{"$f":"B23","v":0},{"$f":"W23","v":0}]
[null,"Postleitzahl",null,null,null,null,null,"Ort",null,null,null,null,null,null,null,null,null,null,null,null,null,null,null,null,null,null,null,null,null,null,null,null,null,"Postfach"]
[null,null,null,null,null,null,null,null,null,null,null,null,null,null,null,null,null,null,null,null,null,null,null,null,null,null,null,null,null,null,null,null,null,null,null,null,null,null,null,null,null,null,{"$f":"IF(B27=0,B29,B27)","v":0}]
[null,"Telefon (Vorwahl/Anschluß) privat *",null,null,null,null,null,null,null,null,null,null,null,"Telefax (Vorwahl/Anschluß) privat *",null,null,null,null,null,null,null,null,null,null,null,"Geburtsort/GROKU-Nr.",null,null,null,null,null,null,null,"Geburtsdatum tt.mm.jjjj"]
[null,null,null,null,null,null,null,null,null,null,null,null,null,null,null,null,null,null,null,null,null,null,null,null,null,null,null,null,null,null,null,null,null,null,null,null,null,null,null,null,null,null,{"$f":"B25","v":0},{"$f":"H25","v":0}]
[null,"Telefon (Vorwahl/Anschluß) geschäftlich *",null,null,null,null,null,null,null,null,null,null,null,"Telefax (Vorwahl/Anschluß) geschäftlich *",null,null,null,null,null,null,null,null,null,null,null,null,null,null,null,null,null,null,null,"Achtung Formatfehler!!"]
[null,null,null,null,null,null,null,null,null,null,null,null,null,null,null,null,null,null,null,null,null,null,null,null,null,null,null,null,null,null,null,null,null,null,null,null,null,null,null,null,null,null,{"$f":"AH27","v":0}]
[null,"Nationalität *",null,null,null,null,null,"KD-Art",null,null,null," Arbeiter",null,null,null," Angestellte",null,null,null," leit. Angest.",null,null,null," Beamte",null,null," Selbständige",null,null,"Haushaltsgröße *",null,null,null,null," Ein-Personen-Haushalt"]
[null,"Lnd.-KZ",null,null,null,null,null,null,null,null,null," in Ausbildung",null,null,null," Unternehmer",null,null,null," Vereine/Verbände",null,null,null,null,null,null,"  Hausfrau / Hausmann",null,null,null,null,null,null,null," Mehr-Personen-Haushalt",null,null,null,null,null,null,null,{"$f":"D31","v":0}]
[null,"Mitarbeiter Genossenschaft/Verbundunternehmen",null,null,null,null,null,null,null,null,null,null,null,null,null,null,null,"ausgeübter Beruf",null,null,null,null,null,null,null,null,"externe Kundennummer"]
[null,null,"JA, genaue Bezeichnung"]
[null,null,"NEIN, Branche des Unternehmens",null,null,null,null,null,null,null,"     best. R+V-Versicherung oder",null,null,null,null,null,null,null,null,null,"KD-Nr.",null,null,null,"Verbund-Kunde (siehe Leiste \"interne statistische Daten\")",null,null,null,null,"Grp.-S.-Vertr.-Nr.",null,null,null,null,null,"Haus-/Wohneigentum"]
[null,"R+V-Kunde",null,null,null,"JA",null,"NEIN",null,null,null,null,null,null,null,null,null,null,null,null,null,null,null,null,null,null,null,null,null,null,null,null,null,null,null,"Mieter"]
[null,"Werbezustimmung:",null,null,null,null,null,"schriftlich",null,null,null,null,null,"telefonisch",null,null,null,null,null,null,"E-Mail",null,null,null,null,null,null,null,null,null,null,null,null,null,null,null,null,null,null,null,null,null,null,false,false,false]
[null,"E-Mail-Adresse*    Sie können die Nutzung der E-Mail-Adresse jederzeit kostenlos untersagen. E-Mail an redaktion@ruv.de genügt."]
[null,null,null,null,null,null,null,null,null,null,null,null,null,null,null,null,null,null,null,null,null,null,null,null,null,null,null,null,null,null,null,null,null,null,null,null,null,null,null,null,null,null,{"$f":"B38","v":0}]
[]
[]
[null,"Anbauverzeichnis und Versicherungssumme l"]
[null,">>> Voraussetzung für den Neuabschluss einer ASP-Ernteversicherung ist eine bestehende / beantragte R+V AgrarPolice oder Ertragsschadenversicherung (EVT) - jeweils mit einem Jahresbeitrag (netto) von mindestens 1.000 EUR <<<"]
[]
[]
[null,"Bitte geben Sie im Anbauverzeichnis die Gesamtflächen der zu versichernden Kulturen sowie deren Hektarwerte an.\n\nEine Anpassung der Hektarwerte während der Vertragslaufzeit ist erforderlich, sobald\n- die Anbaufläche um mehr als 10 % zunimmt oder\n- die Hektarwerte durch Änderung der Fruchtfolge / Ernteerträge / Marktpreise um mehr als 20 % gesteigert werden. "]
[]
[]
[null,null,"Kulturart",null,null,null,null,null,null,null,null,null,null,null,null,null,null,null,null,null,null,null,"Hektar",null,null,null,null,null,"Hektarwert",null,null,null,null,"Versicherungssumme"]
[]
[null,"1.",null,null,null,null,null,null,null,null,null,null,null,null,null,null,null,null,null,null,null,null,null,null,null,null,null,"x",null,null,null,null,"=",{"$f":"W50*AC50","v":0},null,null,null,null,null,null,null,null,{"$f":"C50","v":0},{"$f":"W50","v":0},{"$f":"AC50","v":0},{"$f":"AH50","v":0}]
[]
[null,"2.",null,null,null,null,null,null,null,null,null,null,null,null,null,null,null,null,null,null,null,null,null,null,null,null,null,"x",null,null,null,null,"=",{"$f":"W52*AC52","v":0},null,null,null,null,null,null,null,null,{"$f":"C52","v":0},{"$f":"W52","v":0},{"$f":"AC52","v":0},{"$f":"AH52","v":0}]
[]
[null,"3.",null,null,null,null,null,null,null,null,null,null,null,null,null,null,null,null,null,null,null,null,null,null,null,null,null,"x",null,null,null,null,"=",{"$f":"W54*AC54","v":0},null,null,null,null,null,null,null,null,0,0,0,0]
[]
[null,"4.",null,null,null,null,null,null,null,null,null,null,null,null,null,null,null,null,null,null,null,null,null,null,null,null,null,"x",null,null,null,null,"=",{"$f":"W56*AC56","v":0},null,null,null,null,null,null,null,null,0,0,0,0]
[]
[null,"5.",null,null,null,null,null,null,null,null,null,null,null,null,null,null,null,null,null,null,null,null,null,null,null,null,null,"x",null,null,null,null,"=",{"$f":"W58*AC58","v":0},null,null,null,null,null,null,null,null,0,0,0,0]
[]
[null,"6.",null,null,null,null,null,null,null,null,null,null,null,null,null,null,null,null,null,null,null,null,null,null,null,null,null,"x",null,null,null,null,"=",{"$f":"W60*AC60","v":0},null,null,null,null,null,null,null,null,0,0,0,0]
[]
[null,"7.",null,null,null,null,null,null,null,null,null,null,null,null,null,null,null,null,null,null,null,null,null,null,null,null,null,"x",null,null,null,null,"=",{"$f":"W62*AC62","v":0},null,null,null,null,null,null,null,null,0,0,0,0]
[]
[null,"8.",null,null,null,null,null,null,null,null,null,null,null,null,null,null,null,null,null,null,null,null,null,null,null,null,null,"x",null,null,null,null,"=",{"$f":"W64*AC64","v":0},null,null,null,null,null,null,null,null,0,0,0,0]
[]
[null,"9.",null,null,null,null,null,null,null,null,null,null,null,null,null,null,null,null,null,null,null,null,null,null,null,null,null,"x",null,null,null,null,"=",{"$f":"W66*AC66","v":0},null,null,null,null,null,null,null,null,0,0,0,0]
[]
[null,"10.",null,null,null,null,null,null,null,null,null,null,null,null,null,null,null,null,null,null,null,null,null,null,null,null,null,"x",null,null,null,null,"=",{"$f":"W68*AC68","v":0},null,null,null,null,null,null,null,null,0,0,0,0]
[]
[null,"11.",null,null,null,null,null,null,null,null,null,null,null,null,null,null,null,null,null,null,null,null,null,null,null,null,null,"x",null,null,null,null,"=",{"$f":"W70*AC70","v":0},null,null,null,null,null,null,null,null,0,0,0,0]
[]
[null,"12.",null,null,null,null,null,null,null,null,null,null,null,null,null,null,null,null,null,null,null,null,null,null,null,null,null,"x",null,null,null,null,"=",{"$f":"W72*AC72","v":0},null,null,null,null,null,null,null,null,0,0,0,0]
[]
[null,"13.",null,null,null,null,null,null,null,null,null,null,null,null,null,null,null,null,null,null,null,null,null,null,null,null,null,"x",null,null,null,null,"=",{"$f":"W74*AC74","v":0},null,null,null,null,null,null,null,null,0,0,0,0]
[]
[null,"14.",null,null,null,null,null,null,null,null,null,null,null,null,null,null,null,null,null,null,null,null,null,null,null,null,null,"x",null,null,null,null,"=",{"$f":"W76*AC76","v":0},null,null,null,null,null,null,null,null,0,0,0,0]
[]
[null,"15.",null,null,null,null,null,null,null,null,null,null,null,null,null,null,null,null,null,null,null,null,null,null,null,null,null,"x",null,null,null,null,"=",{"$f":"W78*AC78","v":0},null,null,null,null,null,null,null,null,0,0,0,0]
[]
[null,"16.",null,null,null,null,null,null,null,null,null,null,null,null,null,null,null,null,null,null,null,null,null,null,null,null,null,"x",null,null,null,null,"=",{"$f":"W80*AC80","v":0},null,null,null,null,null,null,null,null,0,0,0,0]
[]
[null,"17.",null,null,null,null,null,null,null,null,null,null,null,null,null,null,null,null,null,null,null,null,null,null,null,null,null,"x",null,null,null,null,"=",{"$f":"W82*AC82","v":0},null,null,null,null,null,null,null,null,0,0,0,0]
[]
[null,"18.",null,null,null,null,null,null,null,null,null,null,null,null,null,null,null,null,null,null,null,null,null,null,null,null,null,"x",null,null,null,null,"=",{"$f":"W84*AC84","v":0},null,null,null,null,null,null,null,null,0,0,0,0]
[]
[null,"19.",null,null,null,null,null,null,null,null,null,null,null,null,null,null,null,null,null,null,null,null,null,null,null,null,null,"x",null,null,null,null,"=",{"$f":"W86*AC86","v":0},null,null,null,null,null,null,null,null,0,0,0,0]
[]
[null,"20.",null,null,null,null,null,null,null,null,null,null,null,null,null,null,null,null,null,null,null,null,null,null,null,null,null,"x",null,null,null,null,"=",{"$f":"W88*AC88","v":0},null,null,null,null,null,null,null,null,0,0,0,0]
[]
[null,null,"Gesamt",null,null,null,null,null,null,null,null,null,null,null,null,null,null,null,null,null,null,null,{"$f":"W50+W52+W54+W56+W58+W60+W62+W64+W66+W68+W70+W72+W74+W76+W78+W80+W82+W84+W86+W88","v":0},null,null,null,null,null,{"$f":"IF(AH90=0,\"\",AH90/W90)","v":""},null,null,null,null,{"$f":"AH50+AH52+AH54+AH56+AH58+AH60+AH62+AH64+AH66+AH68+AH70+AH72+AH74+AH76+AH78+AH80+AH82+AH84+AH86+AH88","v":0},null,null,null,null,null,null,null,null,"Gesamt",0,null,0]
[null,null,{"$f":"\"Achtung: Flächenangaben und Hektarwerte bitte ohne Einheiten angeben!\"&\"                           \"&AQ96","v":"Achtung: Flächenangaben und Hektarwerte bitte ohne Einheiten angeben!                           Höchstentschädigung 5 Mio. €UR"}]
[]
[null,{"$f":"\"Antrags-ID: \"&Datenblatt!$B$3&AQ93&\" ASP-Ernteversicherung\"","v":"Antrags-ID:     44547 ASP-Ernteversicherung"},null,null,null,null,null,null,null,null,null,null,null,null,null,null,null,null,null,null,null,null,null,null,null,null,null,null,null,null,null,null,null,null,null,null,null,null,null,null,null,null,{"$f":"TODAY()","v":44547}]
[]
[null,null,null,null,null,null,null,null,null,null,null,null,null,null,null,null,null,null,null,null,null,null,null,null,null,null,null,null,null,null,null,null,null,null,null,null,null,null,null,null,null,null,"                          Höchstentschädigung: 5,0 Mio. EUR je Haftzeit l"]
[null,null,null,null,null,null,null,null,null,null,null,null,null,null,null,null,null,null,null,null,null,null,null,null,null,null,null,null,null,null,null,null,null,null,null,null,null,null,null,null,null,null,{"$f":"IF('Haftung 1'!AN31=1,\"Höchstentschädigung 5 Mio. €UR\",IF('Haftung 1'!AN31=2,\"Höchstentschädigung 7,5 Mio. €UR\",\"Höchstentschädigung 10 Mio. €UR\"))","v":"Höchstentschädigung 5 Mio. €UR"}]

{"sheet":"Haftung 1","index":3,"n_rows":87,"n_cols":46,"rows_kept":87,"cut":false,"hidden":false,"merged":[[46,25,46,31],[50,25,50,31],[54,25,54,31],[73,1,73,6],[74,1,75,6],[73,8,73,11],[74,8,75,11],[74,7,75,7],[60,1,60,38],[62,1,63,38],[56,17,57,21],[69,22,70,22],[69,8,70,11],[69,13,70,16],[69,18,70,21],[68,1,68,6],[30,1,30,12],[33,1,33,12],[35,1,35,38],[32,1,32,12],[36,1,37,38],[0,1,0,38],[1,1,3,38],[6,1,7,38],[12,1,12,38],[10,1,10,38],[8,1,9,38],[11,1,11,38],[5,1,5,38],[13,1,13,38],[14,1,14,38],[28,1,28,38],[15,1,15,38],[17,1,17,38],[16,1,16,38],[18,1,18,38],[20,1,20,38],[21,1,21,38],[22,1,22,38],[23,1,23,38],[24,1,24,38],[25,1,25,38],[26,1,26,38],[81,1,81,17],[82,1,84,38],[80,1,80,38],[69,32,70,32],[74,12,75,12],[69,28,70,31],[74,32,75,32],[69,23,70,26],[74,13,75,21],[73,13,73,21],[74,22,75,22],[77,1,78,38],[69,1,70,6],[69,17,70,17],[69,12,70,12],[69,7,70,7],[69,33,70,38],[73,23,73,31],[74,23,75,31],[69,27,70,27],[74,33,75,38],[72,33,73,38],[68,18,68,21],[68,8,68,11],[65,1,65,38],[68,23,68,26],[68,28,68,31],[67,33,68,38],[67,13,68,16],[39,1,42,11],[44,35,45,48],[52,35,53,48],[56,23,57,33],[52,25,53,33],[48,17,49,18],[48,20,49,21],[52,20,53,21],[52,23,53,24],[48,25,49,33],[48,23,49,24],[52,17,53,18],[44,17,45,18],[44,20,45,21],[44,23,45,24],[44,25,45,33]]}
[null,"Haftungsumfang"]
[null,"Es gelten die Allgemeinen Versicherungsbedingungen für die Ertragsschadenversicherung für die landwirtschaftliche und gewerbliche Tierproduktion (AVB EVT 01/2008 der VTV) und die unter Vertragsgrundlagen zusätzlich genannten Bedingungen und Risikobeschreibungen \u0081"]
[]
[]
[]
[null,"Zusatzklausel - Afrikanische Schweinepest: "]
[null,"Die Versicherung umfasst den Ertragsschaden gemäß § 2 AVB EVT 01/2008 der VTV.\nAbweichend von § 1 Nr. 2 AVB EVT 01/2008 der VTV  ist der Ertragsschaden der landwirtschaftlichen Pflanzenproduktion (Futterbau, Marktfruchtbau, Energiepflanzen, Sonderkulturen) infolge von"]
[]
[null,"1. Verminderung der Ernteerträge\n2. Unterbrechung oder Ausfall des Produktionsverfahrens"]
[]
[null,"versichert, soweit der Ertragsschaden durch  "]
[null,"die anzeigepflichtige Tierseuche Afrikanische Schweinepest (ASP) gemäß Verordnung über anzeigepflichtige Tierseuchen verursacht wird."]
[null,"Ein Schadenereignis tritt ein, wenn für die versicherten Flächen behördliche Anordnungen zur Vorbeugung vor und zur Bekämpfung von ASP auf Grundlage des § 6 Absatz 1 Nr. 28b TierGesG erfolgen, die eine Beschränkung oder ein Verbot der Nutzung der landwirtschaftlichen Flächen zur Folge haben. \nGemäß § 8 AVB EVT 01/2008 der VTV wird der Ertragsschaden abzüglich des vereinbarten Selbstbehaltes entschädigt. Zahlungen aus anderen Versicherungsverträgen oder aus öffentllichen Mitteln (staatliche Leistungen) werden auf die Entschädigung angerechnet.\n"]
[null,"Weitere Gefahren und Schäden sind nicht versichert."]
[null,"Die Wartezeit beträgt abweichend von § 11 AVB EVT 01/2008 der VTV einen Monat."]
[null,"Der jährliche Netto-Mindestbeitrag (nach Rabatten) liegt bei 50,- €. Bei Anträgen mit geringeren Prämien greift der Mindestbeitrag. "]
[null,"Es gilt ein Unterversicherungsverzicht von 20 % aus der Versicherungssumme. Voraussetzung hierfür ist, dass",null,null,null,null,null,null,null,null,null,null,null,null,null,null,null,null,null,null,null,null,null,null,null,null,null,null,null,null,null,null,null,null,null,null,null,null,null,false]
[null,"1. die bei Antragsstellung zur Versicherungssummenermittlung angenommenen Hektarwerte dem tatsächlichen Wert zu diesem Zeitpunkt entsprechen,\n2. die Gesamtflächen der versicherten Kulturarten des Betriebes abgesichert werden und\n3. die Hektarwerte die vorgeschlagenen Mindestwerte (→ s. Mindest- und Höchsthektarwerte landwirtschaftlicher Kulturpflanzenarten) erfüllen oder überschreiten. "]
[null,"Bei Nichterfüllen der genannten Voraussetzungen entfällt der Unterversicherungsverzicht. "]
[]
[null,"Deckungserweiterung - Wertminderung von Erntegütern (>>> bei Neuabschluss automatisch im Versicherungsschutz enthalten <<<)"]
[null,"Versichert sind zusätzlich die Ertragsschäden der landwirtschaftlichen Pflanzenproduktion (Futterbau, Marktfruchtbau, Energiepflanzen, Sonderkulturen) infolge von "]
[null,"Wertminderung der Erntegüter aus Restriktionsgebieten"]
[null,"auf Grundlage der Allgemeinverfügungen der Landkreise. Im Falle einer Wertminderung von Erntegütern aus den Kerngebieten ist diese auf den Abrechnungen seitens "]
[null,"der Abnehmer nachvollziehbar auszuweisen und zu begründen."]
[null,"Die Höchstentschädigung bei Wertminderung von Erntegütern beträgt max. 10 % des zum Vermarktungszeitpunkts geltenden Markt- bzw. Kontraktpreises."]
[null,"Der bisherige Haftungsumfang gemäß ASP-Zusatzklausel zur AVB EVT 01/2008 bleibt unverändert."]
[]
[null,"Haftzeit / Beitrag / Selbstbehalt l"]
[]
[null,"Bitte wählen Sie die gewünschte Haftzeit.",null,null,null,null,null,null,null,null,null,null,null,null,null,null,null,null,null,null,null,null,null,null,null,null,null,null,null,null,null,null,null,null,null,null,null,null,null,{"$f":"Tariftabelle!$C$2","v":1}]
[]
[null,"Bitte wählen Sie den gewünschten Selbstbehalt.",null,null,null,null,null,null,null,null,null,null,null,null,null,null,null,null,null,null,null,null,null,null,null,null,null,null,null,null,null,null,null,null,null,null,null,null,null,{"$f":"Tariftabelle!$C$7","v":1}]
[null,"(in % der errechneten Schadenhöhe)"]
[]
[null,"Bündelnachlass"]
[null,">>> Voraussetzung für den Neuabschluss einer ASP-Ernteversicherung ist eine bestehende / beantragte R+V AgrarPolice oder Ertragsschadenversicherung (EVT) - jeweils mit einem Jahresbeitrag (netto) von mindestens 1.000 EUR <<<"]
[]
[]
[null,"R+V AgrarPolice mit folgenden Sparten:"]
[]
[]
[null,null,null,null,null,null,null,null,null,null,null,null,null,null,null,null,null,null,null,null,null,null,null,null,null,null,null,null,null,null,null,null,null,null,null,null,null,null,null,null,null,null,null,null,{"$f":"X43","v":0},{"$f":"Z43","v":0}]
[]
[null,null,null,null,null,null,null,null,null,null,null,null,null,null,null,null,null,"oder",null,null,"VSNR:",null,null,84,null,null,null,null,null,null,null,null,null,null,null,"(Arbeitsgebiete: 40, 41, 84)"]
[]
[null,null,null,null,null,null,null,null,null,null,null,null,null,null,null,null,null,null,null,null,null,null,null,null,null,{"$f":"IF(OR(LEN(Z45)=9,ISBLANK(Z45)=TRUE),\"\",\"Bitte korrekte VSNR eingeben!\")","v":""}]
[]
[null,null,null,null,null,null,null,null,null,null,null,null,null,null,null,null,null,"oder",null,null,"VSNR:",null,null,10,null,null,null,null,null,null,null,null,null,null,null,null,null,null,null,null,null,null,null,null,{"$f":"X49","v":10},{"$f":"Z49","v":0}]
[]
[null,null,null,null,null,null,null,null,null,null,null,null,null,null,null,null,null,null,null,null,null,null,null,null,null,{"$f":"IF(OR(LEN(Z49)=9,ISBLANK(Z49)=TRUE),\"\",\"Bitte korrekte VSNR eingeben!\")","v":""}]
[]
[null,null,null,null,null,null,null,null,null,null,null,null,null,null,null,null,null,"oder",null,null,"VSNR:",null,null,21,null,null,null,null,null,null,null,null,null,null,null,"(Arbeitsgebiete: 21, 22)"]
[]
[null,null,null,null,null,null,null,null,null,null,null,null,null,null,null,null,null,null,null,null,null,null,null,null,null,{"$f":"IF(OR(LEN(Z53)=9,ISBLANK(Z53)=TRUE),\"\",\"Bitte korrekte VSNR eingeben!\")","v":""}]
[]
[null,null,null,null,null,null,null,null,null,null,null,null,null,null,null,null,null,"VSNR:"]
[null,null,null,null,null,null,null,null,null,null,null,null,null,null,null,null,null,null,null,null,null,null,null,null,null,null,null,null,null,null,null,null,null,null,null,null,null,null,null,null,null,null,null,null,null,{"$f":"X57","v":0}]
[]
[]
[null,"Entschädigung"]
[]
[null,"Entschädigung: Zu ersetzen ist der Ertragsschaden eines versicherten Produktionsverfahrens § 8 AVB EVT 01/2008 der VTV, abzüglich des vereinbarten Selbstbehaltes. Zahlungen aus öffentlichen Mitteln oder eventuelle Verwertungserlöse werden auf die Entschädigung angerechnet."]
[]
[]
[null,"Beitrag (EUR)"]
[]
[null,null,null,null,null,null,null,null,null,null,null,null,null,"Nettoprämie\n(vor Rabatten)",null,null,null,null,null,null,null,null,null,null,null,null,null,null,null,null,null,null,null,"Jahresnettoprämie*\n(nach Rabatten)"]
[null,"Gesamt - VSU ",null,null,null,null,null,null,"Beitragssatz",null,null,null,null,null,null,null,null,null,"Laufzeitrabatt",null,null,null,null,"Zwischensumme",null,null,null,null,"Bündelrabatt"]
[null,{"$f":"'Fragen VN'!AH90","v":0},null,null,null,null,null,"x",{"$f":"Tariftabelle!E28","v":3.5000000000000001E-3},null,null,null,"=",{"$f":"B70*I70","v":0},null,null,null,"-",{"$f":"IF('Haftung 2'!AQ30=2,N70*0.1,)","v":0},null,null,null,"=",{"$f":"N70-S70","v":0},null,null,null,"-",{"$f":"$X$70*Datenzuordnung!$D$49+Datenzuordnung!$E$49*'Haftung 1'!$X$70","v":0},null,null,null,"=",{"$f":"X70-AC70","v":0},null,null,null,null,null,null,null,"Bündel","Laufzeit"]
[null,null,null,null,null,null,null,null,null,null,null,null,null,null,null,null,null,null,null,null,null,null,null,null,null,null,null,null,null,null,null,null,null,null,null,null,null,null,null,null,{"$f":"AH70","v":0},{"$f":"AC70/X70","v":{"$error":"#DIV/0!"}},{"$f":"S70/N70","v":{"$error":"#DIV/0!"}}]
[]
[null,null,null,null,null,null,null,null,null,null,null,null,null,null,null,null,null,null,null,null,null,null,null,null,null,null,null,null,null,null,null,null,null,"Jahresbruttoprämie"]
[null,null,null,null,null,null,null,null,null,null,null,null,null,"Jahresnettoprämie* (nach Rabatten)",null,null,null,null,null,null,null,null,null,"Versicherungssteuer (19,00 %)"]
[null,null,null,null,null,null,null,null,null,null,null,null,null,{"$f":"AH70","v":0},null,null,null,null,null,null,null,null,"+",{"$f":"N75*19%","v":0},null,null,null,null,null,null,null,null,"=",{"$f":"N75+X75","v":0}]
[null,null,null,null,null,null,null,null,null,null,null,null,null,null,null,null,null,null,null,null,null,null,null,null,null,null,null,null,null,null,null,null,null,null,null,null,null,null,null,null,{"$f":"AH75","v":0}]
[]
[null,"*) der jährlicher Mindestbeitrag beträgt 50,- €"]
[]
[]
[null,"Vereinbarungen (nur gültig nach schriftlicher Bestätigung durch die Gesellschaft)"]
[null,"Werden besondere Vereinbarungen gewünscht? Wenn ja, welche?"]
[]
[]
[]
[null,null,null,null,null,null,null,null,null,null,null,null,null,null,null,null,null,null,null,null,null,null,null,null,null,null,null,null,null,null,null,null,null,null,null,null,null,null,null,null,{"$f":"TODAY()","v":44547}]
[null,{"$f":"\"Antrags-ID: \"&Datenblatt!$B$3&AO86&\" ASP-Ernteversicherung\"","v":"Antrags-ID:     44547 ASP-Ernteversicherung"}]

{"sheet":"Haftung 2","index":4,"n_rows":82,"n_cols":44,"rows_kept":82,"cut":false,"hidden":false,"merged":[[0,1,0,35],[31,1,31,5],[76,11,76,16],[80,34,80,35],[68,11,68,14],[42,1,42,16],[42,18,42,35],[79,2,79,9],[79,11,79,14],[49,1,49,6],[62,1,63,35],[70,1,70,35],[74,1,74,35],[75,1,75,35],[77,2,78,9],[77,10,78,10],[77,11,78,14],[77,15,78,35],[60,1,60,3],[60,5,60,9],[60,11,60,28],[60,30,60,35],[66,2,67,9],[66,10,67,10],[66,11,67,14],[66,15,67,35],[68,2,68,9],[80,31,80,33],[80,8,80,9],[80,10,80,12],[80,13,80,15],[80,16,80,17],[80,18,80,20],[80,21,80,22],[80,23,80,25],[80,26,80,28],[80,29,80,30],[58,1,58,4],[58,5,58,9],[58,30,58,35],[47,1,47,35],[35,1,35,35],[36,1,36,35],[37,1,37,35],[38,1,38,35],[40,1,40,5],[44,2,44,35],[45,2,45,35],[51,1,51,35],[54,1,54,35],[57,1,57,35],[55,1,55,11],[15,2,15,9],[15,11,15,14],[18,3,19,35],[25,17,25,21],[28,1,29,21],[27,11,27,13],[22,1,22,35],[27,1,27,4],[27,28,27,29],[27,19,27,21],[25,23,25,29],[25,1,25,8],[27,5,27,6],[28,23,29,29],[27,25,27,27],[1,1,1,35],[13,2,14,9],[13,10,14,10],[13,11,14,14],[13,15,14,35]]}
[null,"Empfangsbestätigung (Quittung) zur Übergabe relevanter Dokumente"]
[null,"Hiermit bestätige ich durch meine Unterschrift, dass mir die dem Versicherungsvertrag zugrunde liegenden Vertragsbestimmungen, einschließlich der Allgemeinen Versicherungsbedingungen, sowie die Verbraucherinformationen nach der aufgrund des § 7 Abs. 2 VVG erlassenen Rechtsverordnung in Textform vor Unterzeichnung des Antrages in folgender Weise übergeben wurden:"]
[]
[null,null,null,"Allgemeine Bedingungen für die Ertragsschadenversicherung für die landwirtschaftliche und gewerbliche Tierproduktion (AVB EVT 01/2008 der VTV)"]
[]
[null,null,null,"Merkblatt zur Datenverarbeitung"]
[]
[null,null,null,"Satzung"]
[]
[null,"übermittelt per:",null,null,null,null,null,null,"Heft, Formular, Ausdruck",null,null,null,null,null,null,null,null,null,null,null,"CD-Rom",null,null,null,null,null,null,null,null,null,"E-Mail",null,null,null,null,null,null,false]
[null,null,null,null,null,null,null,null,null,null,null,null,null,null,null,null,null,null,null,null,null,null,null,null,null,null,null,null,null,null,null,null,null,null,null,null,null,false]
[null,null,null,"Maklervertrag liegt vor"]
[]
[]
[null,null,null,null,null,null,null,null,null,null,null,null,null,null,null,null,null,null,null,null,null,null,null,null,null,null,null,null,null,null,null,null,null,null,null,null,null,{"$f":"L14","v":"00:00:00"}]
[null,null,"Ort",null,null,null,null,null,null,null,null,"Datum",null,null,null,"Unterschrift des Kunden (bei Minderjährigen: Unterschrift der gesetzlichen Vertreter)"]
[null,"oder",null,null,null,null,null,null,null,null,null,null,null,null,null,null,null,null,null,null,null,null,null,null,null,null,null,null,null,null,null,null,null,null,null,null,null,false]
[]
[null,null,null,"Ich bin damit einverstanden, dass ich die dem Versicherungsvertrag zugrunde liegenden Vertragsbestimmungen einschließlich der Allgemeinen Versicherungsbedingungen und die Verbraucherinformation nach der aufgrund des §7 Abs. 2 VVG erlassenen Rechtsverordnung in Textform erst mit dem Versicherungsschein erhalte. \nDieses Einverständnis bekunde ich auf der von mir zu unterschreibenden separaten Verzichtserklärung. "]
[]
[]
[]
[null,"Beginn / Ablauf / Zahlungsweise"]
[]
[]
[null,"Gewünschter Beginn \n(frühestens ein Tag nach Antragstellung)",null,null,null,null,null,null,null,"Laufzeit",null,null,null,null,null,null,null,"Zahlungsweise",null,null,null,null,null,"Versicherungsablauf",null,null,null,null,null,null,null,null,null,null,null,null,null,null,null,null,null,{"$f":"IF((AP28<10),\"0\"&AP28,AP28)&\".\"&IF((AQ28<10),\"0\"&AQ28,AQ28)&\".\"&AR28","v":"01.01.1903"}]
[]
[null,null,null,null,null,"12 Uhr",null,null,null,null,null,"Jahr / Jahre",null,null,null,null,null,"1/",1,{"$f":"VLOOKUP(S28,Tariftabelle!$A$43:$B$46,2)","v":"jährlich"},null,null,null,{"$f":"\"01.\"","v":"01."},{"$f":"IF(AQ28<10,\"0\"&AQ28&\".\",AQ28&\".\")","v":"01."},{"$f":"AR28","v":1903},null,null,"12 Uhr",null,null,null,null,null,null,null,null,{"$f":"IF(OR(B28 = 0,AL29> AL76),1,0)","v":1},null,null,null,{"$f":"1","v":1},{"$f":"IF(AND(MONTH(B28)<12,DAY(B28)>1),MONTH(B28)+1,IF(MONTH(B28)=12,\"01\",MONTH(B28)))","v":1},{"$f":"IF(MONTH(B28)<>12,IF(AQ30=1,YEAR(B28)+1,YEAR(B28)+3),IF(AQ30=1,YEAR(B28)+2,YEAR(B28)+4))","v":1903}]
[null,"Bei einer Versicherungsdauer von mindestens einem Jahr verlängert sich der Versicherungsvertrag jeweils um ein Jahr, wenn er nicht drei Monate vor Ablauf schriftlich gekündigt wird. Liegt der Versicherungsbeginn vor Ablauf der zweiwöchigen Widerrufsfrist, bin ich damit einverstanden, dass der Versicherungsschutz mit dem vereinbarten Versicherungsbeginn einsetzt (wenn dies nicht gewünscht ist, bitte streichen).",null,null,null,null,null,null,null,null,null,null,null,null,null,null,null,null,null,null,null,null,null,"Bei monatlicher Zahlungs-\nweise ist die Vereinbarung des \nSEPA-Lastschriftmandats erforderlich.",null,null,null,null,null,null,null,null,null,null,null,null,null,{"$f":"B28","v":"00:00:00"},{"$f":"Y28","v":"01."},1]
[null,null,null,null,null,null,null,null,null,null,null,null,null,null,null,null,null,null,null,null,null,null,null,null,null,null,null,null,null,null,null,null,null,null,null,null,null,null,null,3,null,null,2]
[]
[null,"Zahlungsart wählen:"]
[]
[]
[]
[null,"SEPA-Lastschriftmandatk / Unterschriften",null,null,null,null,null,null,null,null,null,null,null,null,null,null,null,null,null,null,null,null,null,null,null,null,null,null,null,null,null,null,null,null,null,null,null,"Rechnung",null,2]
[null,"Im Zuge des einheitlichen Euro-Zahlungsverkehrs (SEPA) gibt es für jeden Zahlungsempfänger eine Gläubiger-Identifikationsnummer.",null,null,null,null,null,null,null,null,null,null,null,null,null,null,null,null,null,null,null,null,null,null,null,null,null,null,null,null,null,null,null,null,null,null,null,"Lastschrift"]
[null,"Die der R+V Vereinigte Tierversicherung G.a.G. lautet: DE0900500000136092."]
[null,"Zusammen mit der Mandatsreferenz, die wir Ihnen gesondert mitteilen, ist eine eindeutige Identifizierung des (SEPA-)Lastschriftmandats gegeben.",null,null,null,null,null,null,null,null,null,null,null,null,null,null,null,null,null,null,null,null,null,null,null,null,null,null,null,null,null,null,null,null,null,null,null,null,null,null,null,"abcde f g h "]
[null,"IBAN bitte 22 Stellen ohne Leerzeichen eingeben!"]
[null,"IBAN",null,null,null,null,null,null,null,null,null,null,null,null,null,null,null,null,"Bankname",null,null,null,null,null,null,null,null,null,null,null,null,null,null,null,null,null,null,null,null,null,null,{"$f":"TRIM(AP39)","v":"abcde f g h"}]
[]
[null,null,null,null,null,null,null,null,null,null,null,null,null,null,null,null,null,null,null,null,null,null,null,null,null,null,null,null,null,null,null,null,null,null,null,null,null,null,{"$f":"LEN(B43)","v":0},{"$f":"S43","v":0}]
[]
[null,null,"Der Kontoinhaber ist der Versicherungsnehmer."]
[null,null,"Der Kontoinhaber ist nicht der Versicherungsnehmer."]
[]
[null,"Adresse des Kontoinhabers: nur erforderlich, wenn dieser vom Versicherungsnehmer abweicht"]
[]
[null,"Name, Vorname"]
[]
[]
[null,"Zusatz, Zustellvermerk, Namensergänzung"]
[]
[]
[null,"Straße, Hausnummer"]
[]
[]
[null,"Länder-Kennz.",null,null,null,"Postleitzahl",null,null,null,null,null,"Ort",null,null,null,null,null,null,null,null,null,null,null,null,null,null,null,null,null,null,"Postfach"]
[]
[]
[]
[null,"Ich ermächtige Sie, Zahlungen von meinem Konto mittels Lastschrift einzuziehen. Zugleich weise ich mein Kreditinstitut an, die von Ihnen auf mein Konto gezogenen Lastschriften \neinzulösen. Hinweis: Ich kann innerhalb von acht Wochen, beginnend mit dem Belastungsdatum, die Erstattung des belasteten Betrags verlangen. Es gelten dabei die mit meinem \nKreditinstitut vereinbarten Bedingungen. Vor der SEPA-Lastschrift informiert der Zahlungsempfänger über Abbuchungstermin und Betrag."]
[]
[]
[]
[]
[]
[null,null,"Ort",null,null,null,null,null,null,null,null,"Datum",null,null,null,"Unterschrift des Kunden (bei Minderjährigen: Unterschrift der gesetzlichen Vertreter)"]
[]
[null,"Unterschriften"]
[]
[]
[]
[null,"Datenschutzhinweise\n1. Ich kann der Verarbeitung meiner personenbezogenen Daten für Zwecke der Werbung oder Markt- oder Meinungsforschung jederzeit mit Wirkung für die Zukunft widersprechen. \n2. Schließlich erklären die Vertragsbeteiligten, dass Ihnen die Möglichkeit gegeben wurde, von dem Merkblatt zur Datenverarbeitung Kenntnis zu nehmen."]
[null,"Bevor Sie diesen Antrag unterschreiben, lesen Sie bitte die Rückseite. Diese enthält die Verbraucherinformationen gemäß InfoV, den Hinweis auf Ihr Widerrufsrecht gegen Werbung sowie Markt- und Meinungsforschung, die Vertragsgrundlagen, die Sanktionsklausel, die Allgemeinen Hinweise und zur Schweigepflichtentbindung; sie sind wichtige Bestandteile des Vertrages. Sie machen mit Ihrer Unterschrift diese Informationen zum Inhalt dieses Antrages.",null,null,null,null,null,null,null,null,null,null,null,null,null,null,null,null,null,null,null,null,null,null,null,null,null,null,null,null,null,null,null,null,null,null,null,{"$f":"L78","v":"00:00:00"}]
[null,null,null,null,null,null,null,null,null,null,null,"Keine Rückdatierung möglich!"]
[null,null,null,null,null,null,null,null,null,null,null,null,null,null,null,null,null,null,null,null,null,null,null,null,null,null,null,null,null,null,null,null,null,null,null,null,null,{"$f":"IF(OR(L78 = 0,L78>= TODAY()),1,0)","v":1}]
[]
[null,null,"Ort",null,null,null,null,null,null,null,null,"Datum",null,null,null,"Unterschrift des Kunden (bei Minderjährigen: Unterschrift der gesetzlichen Vertreter)"]
[]
[null,{"$f":"\"Antrags-ID: \"&Datenblatt!$B$3&AL82&\" ASP-Ernteversicherung\"","v":"Antrags-ID:     44547 ASP-Ernteversicherung"},null,null,null,null,null,null,null,null,null,null,null,null,null,null,null,null,null,null,null,null,null,null,null,null,null,null,null,null,null,null,null,null,null,null,null,{"$f":"TODAY()","v":44547}]

{"sheet":"Antragsrückseite 1","index":5,"n_rows":29,"n_cols":3,"rows_kept":29,"cut":false,"hidden":false,"merged":[[35,1,35,2],[37,1,37,2],[9,2,11,2],[28,2,33,2],[1,1,1,2]]}
[]
[null,"Verbraucherinformationen gemäß § 1 der Verordnung über Informationspflichten \nbei Versicherungsverträgen (VVG-InfoV)"]
[]
[null,"1.","Risikoträger"]
[null,null,"Risikoträger ist die "]
[null,null,"Vereinigte Tierversicherung Gesellschaft a.G."]
[null,null,"Raiffeisenplatz 1"]
[null,null,"65189 Wiesbaden"]
[]
[null,null,"vertreten durch den Vorstand Dr. Klaus Endres, Vorsitzender; Jens Hasselbächer Sitz: Wiesbaden (Raiffeisenplatz 1, 65189 Wiesbaden), Handelsregister Nr. HRB 2173 Amtsgericht Wiesbaden, Steuer-Nr. 45 223 01430, Umsatzsteuer-ID-Nr. DE 114106927.\nDie Vereinigte Tierversicherung Gesellschaft a.G. betreibt Tierversicherungen sowie die Verwaltung von Versorgungseinrichtungen und sonstige Geschäfte, die im engen wirtschaftlichen Zusammenhang mit dem Versicherungsbetrieb stehen.\nAufsichtsbehörde ist die Bundesanstalt für Finanzdienstleistungsaufsicht, Graurheindorfer Str. 108, 53117 Bonn."]
[]
[]
[]
[null,"2.","Wesentliche Merkmale der Versicherung"]
[null,null,"Wesentliche Merkmale der von Ihnen beantragten Versicherungen wie Angaben über Art, Umfang und Beginn des Versicherungsschutzes und Fälligkeit unserer Leistung finden Sie im Angebot bzw. Versicherungsschein, den Versicherungsbedingungen sowie in diesen Verbraucherinformationen."]
[null,null,"Für das Versicherungsverhältnis gelten die im Versicherungsschein dokumentierten Bedingungen und besonderen Vereinbarungen sowie die \"Allgemeine Bedingungen für die Ertragsschadenversicherung für die landwirtschaftliche und gewerbliche Tierproduktion (AVB EVT 01/2008 der VTV)\"  und die unter Vertragsgrundlagen in diesem Antrag zusätzlich genannten Bedingungen und Risikobeschreibungen. \nDas Versicherungsverhältnis unterliegt deutschem Recht (§ 19 AVB EVT 01/2008 der VTV).\nAngaben über Art, Umfang, Fälligkeit und Erfüllung der Leistung des Versicherers entnehmen Sie bitte den Allgemeinen Versicherungsbedingungen und zwar  §§ 1 bis 4, 8, 13, 16 und 17 AVB EVT 01/2008 der VTV."]
[]
[null,"3.","Beitrag und Kosten"]
[null,null,"Die Höhe des Beitrages einschließlich der derzeit geltenden Versicherungsteuer entnehmen Sie bitte dem Antrag bzw. Versicherungsschein, bei telefonischem Vertragsschluss dem Bestätigungsschreiben über das Telefongespräch und der im Versicherungsschein enthaltenen Beitragsrechnung."]
[null,null,"Im Falle einer Beitragsanmahnung bei Zahlungsverzug können Mahngebühren bis zu 15,00 EUR entstehen."]
[]
[null,"4.","Beitragszahlung"]
[null,null,"Die Bestimmungen zur Zahlung und Erfüllung sowie der Zahlweise der Versicherungsbeiträge finden Sie im Angebot, dem Versicherungsschein und den Versicherungsbedingungen. Eine erteilte Einzugsermächtigung gilt auch für Ersatzverträge."]
[]
[null,"5.","Zustandekommen des Vertrags"]
[null,null,"Vor Abgabe Ihres Antrages erhalten Sie mit diesen Informationen nach § 1 VVG-InfoV die für Sie geltenden Allgemeinen und Besonderen Versicherungsbedingungen und gegebenenfalls sonstige vertragsrelevante Informationen, sofern Sie hierauf nicht ausdrücklich verzichtet haben.\nDie Aufnahme Ihres Antrags stellt Ihr Angebot zum Abschluss eines Versicherungsvertrages dar.\nDen Versicherungsschein (Police) erhalten Sie per Post. Mit Zugang der Police ist der Versicherungsvertrag geschlossen, sofern Sie Ihr Widerrufsrecht nicht ausüben.\nDen Beginn der Versicherung und des Versicherungsschutzes entnehmen Sie bitte dem Versicherungsschein. Bitte beachten Sie, dass der Beginn des Versicherungsschutzes abhängig von der rechtzeitigen Zahlung des Beitrags ist.\nSoweit für Sie eine Antragsbindungsfrist besteht, können Sie diese dem Antrag entnehmen. Im Falle einer Angebotsbefristung können Sie dies dem Angebot entnehmen."]
[]
[null,"6.","Widerrufsbelehrung"]
[null,null,"Abschnitt 1\nWiderrufsrecht, Widerrufsfolgen und besondere Hinweise\n\nWiderrufsrecht\nSie können Ihre Vertragserklärung innerhalb einer Frist von 14 Tagen ohne Angabe von Gründen in Textform (z. B. Brief, Fax, E-Mail) widerrufen.\nDie Widerrufsfrist beginnt, nachdem Ihnen\n• der Versicherungsschein,\n• die Vertragsbestimmungen,\n   einschließlich der für das Vertragsverhältnis geltenden Allgemeinen Ver sicherungsbedingungen, diese wiederum einschließlich der\n   Tarifbestimmungen,\n• diese Belehrung,\n• das Informationsblatt zu Versicherungsprodukten,\n• und die weiteren in Abschnitt 2 aufgeführten Informationen\njeweils in Textform zugegangen sind.\nZur Wahrung der Widerrufsfrist genügt die rechtzeitige Absendung des Widerrufs.\nDer Widerruf ist zu richten an:\nVereinigte Tierversicherung a.G., Raiffeisenplatz 1, 65189 Wiesbaden, Fax-Nr.: 0611-533- 9665, ruv@ruv.de\n\nWiderrufsfolgen\nIm Falle eines wirksamen Widerrufs endet der Versicherungsschutz und der Versicherer hat Ihnen den auf die Zeit nach Zugang des Widerrufs entfallenden Teil der Beiträge zu erstatten, wenn Sie zugestimmt haben, dass der Versicherungsschutz vor dem Ende der Widerrufsfrist beginnt. Den Teil des Beitrags, der auf die Zeit bis zum Zugang des Widerrufs entfällt, darf der Versicherer in diesem Fall einbehalten; dabei handelt es sich für jeden Tag, an dem Versicherungsschutz bestanden hat, um einen Betrag von\n• 1/360 des jährlichen Beitrags,\n• 1/180 des halbjährlichen Beitrags,\n• 1/90 des vierteljährlichen Beitrags oder\n• 1/30 des monatlichen Beitrags.\nBei Zahlung eines Einmalbeitrages können Sie den Betrag, den wir für jeden Tag einbehalten dürfen, an dem Versicherungsschutz bestanden hat, anhand folgender Formel errechnen:\n\n                                              Einmalbeitrag Ihrer Versicherung\n                                       Beantragte Versicherungsdauer in Tagen\n\n"]

{"sheet":"Antragsrückseite 2","index":6,"n_rows":19,"n_cols":3,"rows_kept":19,"cut":false,"hidden":false,"merged":[[1,2,3,2]]}
[]
[null,null,"Die mit Ihnen vereinbarte Zahlungsweise sowie die Höhe Ihres Beitrags können Sie dem Ihnen zur Verfügung gestellten Antrag bzw. Versicherungsschein entnehmen. Die Erstattung zurückzuzahlender Beträge erfolgt unverzüglich, spätestens 30 Tage nach Zugang des Widerrufs.\nBeginnt der Versicherungsschutz nicht vor dem Ende der Widerrufsfrist, hat der wirksame Widerruf zur Folge, dass empfangene Leistungen zurückzugewähren und gezogene Nutzungen (z.B. Zinsen) herauszugeben sind.\n\nBesondere Hinweise\nIhr Widerrufsrecht erlischt, wenn der Vertrag auf Ihren ausdrücklichen Wunsch sowohl von Ihnen als auch vom Versicherer vollständig erfüllt ist, bevor Sie Ihr Widerrufsrecht ausgeübt haben.\n\nAbschnitt 2\nAuflistung der für den Fristbeginn erforderlichen weiteren Informationen\nHinsichtlich der in Abschnitt 1 Satz 2 genannten weiteren Informationen werden die Informationspflichten im Folgenden im Einzelnen aufgeführt:\n\nInformationspflichten bei allen Versicherungszweigen\nDer Versicherer hat Ihnen folgende Informationen zur Verfügung zu stellen:\n1. die Identität des Versicherers und der etwaigen Niederlassung, über die der Vertrag abgeschlossen werden soll; anzugeben ist auch das Handelsregister, bei dem der Rechtsträger eingetragen ist, und die zugehörige Registernummer;\n2. die ladungsfähige Anschrift des Versicherers und jede andere Anschrift, die für die Geschäftsbeziehung zwischen dem Versicherer und Ihnen maßgeblich ist, bei juristischen Personen, Personenvereinigungen oder -gruppen auch den Namen eines Vertretungsberechtigten; soweit die Mitteilung durch Übermittlung der Vertragsbestimmungen einschließlich der Allgemeinen Versicherungsbedingungen erfolgt, bedürfen die Informationen einer hervorgehobenen und deutlich gestalteten Form;\n3. die Hauptgeschäftstätigkeit des Versicherers;\n4. die wesentlichen Merkmale der Versicherungsleistung, insbesondere Angaben über Art, Umfang und Fälligkeit der Leistung des Versicherers;\n5. den Gesamtpreis der Versicherung einschließlich aller Steuern und sonstigen Preisbestandteile, wobei die Prämien einzeln auszuweisen sind, wenn das Versicherungsverhältnis mehrere selbständige Versicherungsverträge umfassen soll, oder, wenn ein genauer Preis nicht angegeben werden kann, Angaben zu den Grund lagen seiner Berechnung, die Ihnen eine Überprüfung des Preises ermöglichen;\n6. a) gegebenenfalls zusätzlich anfallende Kosten unter Angabe des insgesamt zu zahlenden Betrages sowie mögliche weitere Steuern, Gebühren oder Kosten, die nicht über den Versicherer abgeführt oder von ihm in Rechnung gestellt werden;\nb) alle Kosten, die Ihnen für die Benutzung von Fernkommunikationsmitteln entstehen, wenn solche zusätzlichen Kosten in Rechnung gestellt werden;\n7. Einzelheiten hinsichtlich der Zahlung und der Erfüllung, insbesondere zur Zahlungsweise der Prämien;\n8. die Befristung der Gültigkeitsdauer der zur Verfügung gestellten Informationen, beispielsweise die Gültigkeitsdauer befristeter Angebote, insbesondere hinsichtlich des Preises;\n9. Angaben darüber, wie der Vertrag zustande kommt, insbesondere über den Beginn der Versicherung und des Versicherungsschutzes sowie die Dauer der Frist, während der der Antragsteller an den Antrag gebunden sein soll;\n10. das Bestehen oder Nichtbestehen eines Widerrufsrechts sowie die Bedingungen, Einzelheiten der Ausübung, insbesondere Namen und Anschrift derjenigen Person, gegenüber der der Widerruf zu erklären ist, und die Rechtsfolgen des Widerrufs einschließlich Informationen über den Betrag, den Sie im Falle des Widerrufs gegebenenfalls zu zahlen haben; soweit die Mitteilung durch Übermittlung der Vertragsbestimmungen einschließlich der Allgemeinen Versicherungsbedingungen erfolgt, bedürfen die Informationen einer hervorgehobenen und deutlich gestalteten Form;\n11. a) Angaben zur Laufzeit des Vertrages;\nb) Angaben zur Mindestlaufzeit des Vertrages;\n12. Angaben zur Beendigung des Vertrages, insbesondere zu den vertraglichen Kündigungsbedingungen einschließlich etwaiger Vertragsstrafen; soweit die Mitteilung durch Übermittlung der Vertragsbestimmungen einschließlich der Allgemeinen Versicherungsbedingungen erfolgt, bedürfen die Informationen einer hervorgehobenen und deutlich gestalteten Form;\n13. die Mitgliedstaaten der Europäischen Union, deren Recht der Versicherer der Aufnahme von Beziehungen zu Ihnen vor Abschluss des Versicherungsvertrags zugrunde legt;\n14. das auf den Vertrag anwendbare Recht, eine Vertragsklausel über das auf den Vertrag anwendbare Recht oder über das zuständige Gericht;\n15. die Sprachen, in denen die Vertragsbedingungen und die in dieser Ziffer II. genannten Vorabinformationen mitgeteilt werden, sowie die Sprachen, in denen sich der Versicherer verpflichtet, mit Ihrer Zustimmung die Kommunikation während der Laufzeit dieses Vertrags zu führen;\n16. einen möglichen Zugang für Sie zu einem außergerichtlichen Beschwerde- und Rechtsbehelfsverfahren und gegebenenfalls die Voraussetzungen für diesen Zugang; dabei ist ausdrücklich darauf hinzuweisen, dass die Möglichkeit für Sie, den Rechtsweg zu beschreiten, hiervon unberührt bleibt;\n17. Name und Anschrift der zuständigen Aufsichtsbehörde sowie die Möglichkeit einer Beschwerde bei dieser Aufsichtsbehörde.\n\nEnde der Widerrufsbelehrung."]
[]
[]
[]
[null,"7.","Laufzeit des Vertrages"]
[null,null,"Die Laufzeit des Vertrages entnehmen Sie bitte dem Antrag (siehe Abschnitt „Beginn/ Ablauf/ Zahlungsweise“) und dem Versicherungs-schein sowie den Verlängerungsbestimmungen in den Allgemeinen Versicherungsbedingungen (§ 11 AVB EVT 01/2008 der VTV)."]
[]
[null,"8.","Kündigungsrecht"]
[null,null,"Die Bestimmungen zum Kündigungsrecht entnehmen Sie bitte den Allgemeinen Versicherungsbedingungen ( §11 AVB EVT 01/2008 der VTV)."]
[]
[null,"9.","Anwendbares Recht / Sprache"]
[null,null,"Auf den Versicherungsvertrag findet das Recht der Bundesrepublik Deutschland Anwendung. Die Vertragsbedingungen und die Vorabinformationen werden in deutscher Sprache mitgeteilt. Die Kommunikation während der Laufzeit wird in deutscher Sprache geführt."]
[]
[null,"10.","Außergerichtliche Beschwerdestelle"]
[null,null,"Bei Beschwerden können Sie als Verbraucher in den Fällen, die nicht Ihrer gewerb lichen oder selbständigen Tätigkeit zuzurechnen sind, das außergerichtliche Beschwerde- und Rechtsbehelfsverfahren bei dem Verein Versicherungsombudsmann e.V. in Anspruch nehmen.\nWir sind Mitglied des Versicherungsombudsmann e. V. und haben uns verpflichtet, an diesen Streitbeilegungsverfahren teilzunehmen.\nDie Anschrift lautet: Versicherungsombudsmann e.V., Postfach 080632, 10006 Berlin, E-Mail: beschwerde@versicherungsombudsmann.de.\nDas Verfahren ist für Sie kostenfrei. Entscheidungen des Ombudsmanns bis zum Beschwerdewert von 10.000 EUR sind für uns bindend.\nWeitere Informationen finden Sie im Internet unter www.versicherungsombudsmann.de.\nUnabhängig von der Inanspruchnahme einer außergerichtlichen Beschwerdestelle besteht für Sie weiterhin die Möglichkeit den Rechtsweg zu beschreiten."]
[]
[null,"11.","Beschwerde bei der Aufsichtsbehörde"]
[null,null,"Sie können sich mit einer Beschwerde auch an die Bundesanstalt für Finanzdienstleistungsaufsicht, Graurheindorfer Straße 108, 53117 Bonn wenden.\n"]

{"sheet":"Antragsrückseite 3","index":7,"n_rows":42,"n_cols":3,"rows_kept":42,"cut":false,"hidden":false,"merged":[[41,1,44,2],[1,1,1,2],[3,1,3,2],[9,1,9,2],[4,1,4,2],[7,1,7,2]]}
[]
[null,"Widerspruchsrecht gegen Werbung sowie Markt- und Meinungsforschung"]
[null,null,"Wir verarbeiten Ihre Daten im rechtlich zulässigen Rahmen zum Zwecke der Werbung oder der Markt- oder Meinungsforschung.\nDieser Verarbeitung können Sie jederzeit formlos mit Wirkung für die Zukunft widersprechen.\nWerbewidersprüche können Sie z.B. per E-Mail an ruv@ruv.de schicken.\n"]
[]
[null,"Sanktionsklausel"]
[null,null,"Es besteht - unbeschadet der übrigen Vertragsbestimmungen - Versicherungsschutz nur, soweit und solange dem keine auf die Vertragsparteien direkt anwendbaren Wirt- schafts-, Handels-, oder Finanzsanktionen bzw. Embargos der Europäischen Union oder der Bundesrepublik Deutschland entgegenstehen.\nDies gilt auch für Wirtschafts-, Handels- oder Finanzsanktionen bzw. Embargos der Vereinigten Staaten von Amerika, soweit dem nicht Rechtsvorschriften der Euro päischen Union oder der Bundesrepublik Deutschland entgegenstehen."]
[]
[null,"j Vertragsgrundlagen "]
[]
[null,"Ertragsschadenversicherung"]
[]
[null,null,"Zusätzlich zu den AVB EVT 01/2008 der VTV gelten die"]
[]
[null,null,"- Satzung,"]
[null,null,"- gesetzlichen Bestimmungen,"]
[null,null,"- Zusatzklausel Afrikanische Schweinepest sowie die"]
[null,null,"- Vereinbarung zur Deckungserweiterung - Wertminderung von Erntegütern."]
[]
[null,null,"Der Versicherungsnehmer wird satzungsgemäß Mitglied der Gesellschaft. Bei den Beiträgen handelt es sich um Vorbeiträge gemäß § 21 ff. der Satzung."]
[]
[null,null,"k Das SEPA-Lastschriftmandat gilt auch für Ersatzverträge sowie für Gebühren und eventuelle Mahngebühren."]
[]
[null,"Tarifbestimmungen und Allgemeine Hinweise"]
[]
[null,null,"Mündliche Nebenabreden sind unwirksam. Nebenabreden gelten nur, wenn sie von der Gesellschaft schriftlich bestätigt werden. "]
[]
[null,null,"Die dem Vertrag zugrunde liegenden Bedingungen und/oder die Satzung gelten nur für die jeweils versicherte Gefahr."]
[]
[null,null,"l Je Haftzeit zur Verfügung stehende Versicherungssumme:"]
[null,null,"Haftzeit 12 Monate: Gesamtversicherungssumme x Faktor 1,0"]
[null,null,"Haftzeit 18 Monate: Gesamtversicherungssumme x Faktor 1,5"]
[null,null,"Haftzeit 24 Monate: Gesamtversicherungssumme x Faktor 2,0"]
[]
[null,null,"l Höchstentschädigung:"]
[null,null,"Die Höchstentschädigung bezogen auf 12 Monate Haftzeit beträgt 5,0 Mio. EUR und erhöht sich bei vertraglich vereinbarter längerer Haftzeit."]
[]
[null,null,"Vereinbarte Haftzeit 12 Monate: Höchstentschädigung 5,0 Mio. EUR"]
[null,null,"Vereinbarte Haftzeit 18 Monate: Höchstentschädigung 7,5 Mio. EUR"]
[null,null,"Vereinbarte Haftzeit 24 Monate: Höchstentschädigung 10,0 Mio. EUR"]
[]
[]
[null,"Vereinigte Tierversicherung Gesellschaft a.G., Raiffeisenplatz 1, 65189 Wiesbaden \nVorsitzender des Aufsichtsrats: Generaldirektor Dr. Norbert Rollinger. Vorstand: Dr. Klaus Endres, Vorsitzender; Jens Hasselbächer. \nSitz: Raiffeisenplatz 1, 65189 Wiesbaden, Handelsregister Nr. HRB 2173, Amtsgericht Wiesbaden, USt-IdNr. DE 114106927"]

{"sheet":"Verzichtserklärung - Übergabe","index":8,"n_rows":55,"n_cols":15,"rows_kept":55,"cut":false,"hidden":false,"merged":[[40,1,41,10],[40,12,41,29],[45,12,46,29],[50,12,51,29],[16,12,16,29],[25,1,25,29],[28,1,28,29],[18,12,18,30],[24,1,24,29],[23,1,23,29],[33,1,33,29],[32,1,32,29],[31,1,31,29],[30,1,30,29],[29,1,29,29],[13,1,13,10],[13,12,13,30],[16,1,16,11],[4,12,4,29],[0,1,0,29],[8,12,8,30],[9,12,9,13],[9,14,9,30],[3,12,3,31],[14,12,14,30]]}
[]
[null,"Verzicht auf vorvertragliche Information"]
[]
[null,"Agenturnummer:",null,null,null,null,null,null,null,null,null,null,{"$f":"'Fragen VN'!Y17","v":0}]
[null,"Vermittler:"]
[]
[null,"Versicherungsnehmer:",null,null,null,null,null,null,null,null,null,null,{"$f":"IF('Fragen VN'!AA19=\"\",\"\",'Fragen VN'!AA19)","v":0}]
[null,null,null,null,null,null,null,null,null,null,null,null,{"$f":"IF('Fragen VN'!AQ19=0,\"\",'Fragen VN'!AQ19&\" \")&IF('Fragen VN'!AR19=0,\"\",'Fragen VN'!AR19&\" \")&IF('Fragen VN'!AS19=0,\"\",'Fragen VN'!AS19)","v":""}]
[null,null,null,null,null,null,null,null,null,null,null,null,{"$f":"IF('Fragen VN'!B23=0,\"\",'Fragen VN'!B23&\" \"&'Fragen VN'!AR23)","v":""}]
[null,null,null,null,null,null,null,null,null,null,null,null,{"$f":"IF('Fragen VN'!B25=0,\"\",'Fragen VN'!B25)","v":""},null,{"$f":"IF('Fragen VN'!H25=0,\"\",'Fragen VN'!H25)","v":""}]
[null,""]
[]
[]
[null,"Produkt",null,null,null,null,null,null,null,null,null,null,"Ernteversicherung"]
[null,null,null,null,null,null,null,null,null,null,null,null,"Afrikanische Schweinepest (ASP)"]
[]
[null,"Antragsdatum:",null,null,null,null,null,null,null,null,null,null,{"$f":"'Haftung 2'!AL76","v":"00:00:00"}]
[]
[null,"Gesellschaft:",null,null,null,null,null,null,null,null,null,null,"Vereinigte Tierversicherung Gesellschaft a.G."]
[]
[]
[]
[]
[null,"Als Versicherungsnehmer habe ich einen gesetzlichen Anspruch darauf, die Vertragsbestimmungen inkl. "]
[null,"der Allgemeinen Versicherungsbedingungen und den Allgemeinen Steuerinformationen vor Abgabe meiner"]
[null,"Vertragserklärung in Textform zu erhalten."]
[]
[]
[null,"Ich verzichte mit der Abgabe dieser Erklärung ausdrücklich darauf, diese Informationen vor "]
[null,"Abgabe meiner Vertragserklärung zu erhalten. Ich bin darüber aufgeklärt worden, dass ich"]
[null,"bei der Abgabe dieser Verzichtserklärung die Informationen erst mit dem"]
[null,"Versicherungsschein und nicht bereits vor Abgabe meiner Vertragserklärung erhalte. Mir "]
[null,"ist bewusst, dass die Abgabe dieser Verzichtserklärung keine Voraussetzung für den "]
[null,"Vertragsabschluss ist. "]
[]
[]
[]
[]
[]
[]
[]
[]
[null,"Ort, Datum",null,null,null,null,null,null,null,null,null,null,"Unterschrift des Versicherungsnehmers"]
[]
[]
[]
[]
[null,null,null,null,null,null,null,null,null,null,null,null,"bei Minderjährigen: Unterschrift der gesetzlichen Vertreter"]
[]
[]
[]
[]
[null,null,null,null,null,null,null,null,null,null,null,null,"Stempel und Unterschrift des Vermittlers"]
[]
[null,{"$f":"'Verzichtserklärung - Beratung'!B44","v":"Antrags-ID:     44547 ASP-Ernteversicherung"}]

{"sheet":"Verzichtserklärung - Beratung","index":9,"n_rows":44,"n_cols":32,"rows_kept":44,"cut":false,"hidden":false,"merged":[[39,17,39,30],[37,17,38,29],[35,1,35,14],[39,1,39,14],[41,1,41,14],[40,1,40,14],[8,1,8,7],[23,11,23,19],[29,1,29,29],[28,1,28,29],[21,11,21,29],[6,11,6,29],[19,11,19,29],[37,1,38,14],[33,1,34,14],[0,1,0,29],[5,11,5,29],[31,1,31,30],[17,1,17,30],[5,1,5,7],[11,11,11,12],[8,11,8,29],[9,11,9,29],[10,11,10,29],[11,13,11,29],[16,1,16,30],[6,1,6,7]]}
[null,"R+V Versicherungsgruppe - Raiffeisenplatz 1 - 65189 Wiesbaden - Bundesrepublik Deutschland"]
[]
[null,"Verzichtserklärung - Beratung"]
[]
[]
[null,"Agenturnummer:",null,null,null,null,null,null,null,null,null,{"$f":"'Fragen VN'!Y17","v":0}]
[null,"Vermittler:"]
[]
[null,"Versicherungsnehmer:",null,null,null,null,null,null,null,null,null,{"$f":"IF('Fragen VN'!AA19=\"\",\"\",'Fragen VN'!AA19)","v":0}]
[null,null,null,null,null,null,null,null,null,null,null,{"$f":"IF('Fragen VN'!AQ19=0,\"\",'Fragen VN'!AQ19&\" \")&IF('Fragen VN'!AR19=0,\"\",'Fragen VN'!AR19&\" \")&IF('Fragen VN'!AS19=0,\"\",'Fragen VN'!AS19)","v":""}]
[null,null,null,null,null,null,null,null,null,null,null,{"$f":"IF('Fragen VN'!B23=0,\"\",'Fragen VN'!B23&\" \"&'Fragen VN'!AR23)","v":""}]
[null,"",null,null,null,null,null,null,null,null,null,{"$f":"IF('Fragen VN'!B25=0,\"\",'Fragen VN'!B25)","v":""},null,{"$f":"IF('Fragen VN'!H25=0,\"\",'Fragen VN'!H25)","v":""}]
[null,""]
[]
[]
[]
[null,"Grund und Gegenstand des Beratungsgesprächs"]
[null,"Wünsche und Bedürfnisse des Kunden"]
[]
[null,"Gesprächsteilnehmer:"]
[]
[null,"Grund des Gesprächs:"]
[]
[null,"Datum des Gesprächs:"]
[]
[]
[]
[]
[null,"Ich verzichte auf die Beratung und Dokumentation durch den Versicherungsvermittler und die "]
[null,"Versicherungsunternehmen der R+V Versicherungsgruppe."]
[]
[null,"Der Versicherungsvermittler hat mich ausdrücklich darauf hingewiesen, dass sich ein Verzicht nachteilig auf die Möglichkeit auswirken kann, gegen den Versicherungsvermittler und die Versicherungsunternehmen der R+V Versicherungsgruppe einen Schadenersatzanspruch wegen der Verletzung von Beratungs- und Dokumentationspflichten geltend zu machen."]
[]
[]
[]
[null,"Ort, Datum "]
[]
[]
[]
[null,"Unterschrift des Kunden / ",null,null,null,null,null,null,null,null,null,null,null,null,null,null,null,"Unterschrift/Stempel des Vermittlers"]
[null,"bei Minderjährigen Unterschrift des "]
[null,"gesetzlichen Vertreters"]
[]
[null,{"$f":"\"Antrags-ID: \"&Datenblatt!$B$3&AF44&\" ASP-Ernteversicherung\"","v":"Antrags-ID:     44547 ASP-Ernteversicherung"},null,null,null,null,null,null,null,null,null,null,null,null,null,null,null,null,null,null,null,null,null,null,null,null,null,null,null,null,null,{"$f":"TODAY()","v":"2021-12-17"}]

{"sheet":"R+V Beratungsprotokoll","index":10,"n_rows":63,"n_cols":32,"rows_kept":63,"cut":false,"hidden":false,"merged":[[50,2,51,13],[62,14,114,28],[21,24,21,27],[22,24,22,27],[21,2,21,22],[22,2,22,22],[62,2,114,13],[60,2,60,27],[49,11,49,14],[40,2,40,27],[42,2,42,27],[43,2,43,27],[45,2,45,27],[39,2,39,27],[47,2,47,13],[50,18,51,27],[1,2,1,27],[3,14,3,26],[12,2,12,28],[11,2,11,28],[4,14,4,27],[6,14,6,27],[9,17,9,27],[7,14,7,27],[8,14,8,27],[9,14,9,16],[14,13,14,27],[16,13,16,27],[35,2,35,27],[34,2,34,27],[36,2,36,27],[18,13,18,27],[28,2,29,27],[31,2,31,27],[32,2,32,27],[24,14,24,27],[26,2,26,27],[27,2,27,27],[24,2,24,13]]}
[]
[null,null,"R+V Versicherungsgruppe - Raiffeisenplatz 1 - 65189 Wiesbaden - Bundesrepublik Deutschland"]
[]
[null,null,"Agenturnummer:",null,null,null,null,null,null,null,null,null,null,null,{"$f":"'Fragen VN'!Y17","v":0}]
[null,null,"Vermittler: "]
[]
[null,null,"Versicherungsnehmer: ",null,null,null,null,null,null,null,null,null,null,null,{"$f":"IF('Fragen VN'!AA19=\"\",\"\",'Fragen VN'!AA19)","v":0}]
[null,null,null,null,null,null,null,null,null,null,null,null,null,null,{"$f":"IF('Fragen VN'!AQ19=0,\"\",'Fragen VN'!AQ19&\" \")&IF('Fragen VN'!AR19=0,\"\",'Fragen VN'!AR19&\" \")&IF('Fragen VN'!AS19=0,\"\",'Fragen VN'!AS19)","v":""}]
[null,null,null,null,null,null,null,null,null,null,null,null,null,null,{"$f":"IF('Fragen VN'!B23=0,\"\",'Fragen VN'!B23&\" \"&'Fragen VN'!AR23)","v":""}]
[null,null,null,null,null,null,null,null,null,null,null,null,null,null,{"$f":"IF('Fragen VN'!B25=0,\"\",'Fragen VN'!B25)","v":""},null,null,{"$f":"IF('Fragen VN'!H25=0,\"\",'Fragen VN'!H25)","v":""}]
[]
[null,null,"Grund und Gegenstand des Beratungsgesprächs"]
[null,null,"Wünsche und Bedürfnisse des Kunden"]
[]
[null,null,"Gesprächsteilnehmer"]
[]
[null,null,"Grund des Gesprächs"]
[]
[null,null,"Datum des Gesprächs"]
[]
[null,null,"Ermittlung des Beratungsbedarfs (nur ausfüllen für eine Folgeberatung mit R+V BeratungsQualität)"]
[null,null,"Der Kunde wünscht einen (weiteren) Termin zur Sichtung/Eröterung/Durchsprache",null,null,null,null,null,null,null,null,null,null,null,null,null,null,null,null,null,null,null,null,null,"JA"]
[null,null,"seines Versicherungsschutzes im Rahmen der R+V BeratungsQualität.",null,null,null,null,null,null,null,null,null,null,null,null,null,null,null,null,null,null,null,null,null,"NEIN"]
[]
[null,null,"Der Kunde wünscht hierzu einen (weiteren) Termin am:"]
[]
[null,null,"Empfehlung des Vermittlers (Versicherungsprodukte auflisten) / Konkreter Versicherungswunsch"]
[null,null,"/-wünsche bzw. Entscheidung des Kunden:"]
[]
[]
[]
[null,null,"Gründe für den erteilten Rat / die Empfehlung (ist immer individuell einzutragen!)"]
[]
[]
[null,null,"Sonstige Bemerkungen (z. B. nicht vom Kunden gewünschte Versicherungen / Absicherung, "]
[null,null,"Hinweis auf nicht versicherte Risiken, Angaben zu bestehenden Verträgen)"]
[]
[]
[]
[null,null,"Versicherungsantrag und Versicherungsschein"]
[null,null,"Im Übrigen gelten die Angaben des Kunden/Versicherungsnehmers im Antrag bzw. im Versicherungsschein."]
[]
[null,null,"Bitte prüfen Sie, ob weiterer Beratungsbedarf in den über das vorliegende Beratungsprotokoll "]
[null,null,"nicht abgedeckten Bereichen besteht."]
[]
[null,null,"Empfangsbestätigung: Ich habe / Wir haben eine Ausfertigung des Beratungsprotokolls erhalten."]
[]
[]
[null,null,"Ort, Datum"]
[]
[]
[]
[null,null,"Unterschrift des Kunden bzw. bei Minderjährigen Unterschrift des",null,null,null,null,null,null,null,null,null,null,null,null,null,null,null,"Unterschrift/Stempel des Vermittlers"]
[null,null,"gesetzlichen Vertreters"]
[]
[null,null,{"$f":"\"Antrags-ID: \"&Datenblatt!$B$3&AF56&\" ASP-Ernteversicherung\"","v":"Antrags-ID:     44547 ASP-Ernteversicherung"},null,null,null,null,null,null,null,null,null,null,null,null,null,null,null,null,null,null,null,null,null,null,null,null,null,null,null,null,{"$f":"TODAY()","v":"2021-12-17"}]
[]
[]
[]
[]
[null,null,"Gesellschaften der R+V Versicherungsgruppe "]
[]
[null,null,"CHEMIE Pensionsfonds AG\nVorsitzender des Aufsichtsrats: Ralf Sikorski.\nVorstand: Rüdiger Bach, Sprecher; Timm Höynck.\nSitz: Riesstraße 17, 80992 München,\nHandelsregister Nr. HRB 136188, Amtsgericht München,\nUSt-IdNr. DE 218558576\nCondor Allgemeine Versicherungs-Aktiengesellschaft\nVorsitzender des Aufsichtsrats: Dr. Christoph Lamby.\nVorstand: Michael Busch, Jan Dirk Dallmer, Claus Scharfenberg.\nSitz: Admiralitätstraße 67, 20459 Hamburg,\nHandelsregister Nr. HRB 7520, Amtsgericht Hamburg,\nUSt-IdNr. DE 118617606\nCondor Lebensversicherungs-Aktiengesellschaft\nVorsitzender des Aufsichtsrats: Generaldirektor Dr. Norbert Rollinger.\nVorstand: Dr. Matthias Ising, Claus Scharfenberg, Ulrike Taube.\nSitz: Admiralitätstraße 67, 20459 Hamburg,\nHandelsregister Nr. HRB 7763, Amtsgericht Hamburg,\nUSt-IdNr. DE 179249623\nKRAVAG-ALLGEMEINE Versicherungs-AG\nVorsitzender des Aufsichtsrats: Generaldirektor Dr. Norbert Rollinger.\nVorstand: Dr. Edgar Martin, Vorsitzender;\nMichael Busch, Jan Dirk Dallmer, Jens Hasselbächer.\nSitz: Heidenkampsweg 102, 20097 Hamburg,\nHandelsregister Nr. HRB 64830, Amtsgericht Hamburg,\nUSt-IdNr. DE 183895556\nKRAVAG-LOGISTIC Versicherungs-AG\nVorsitzender des Aufsichtsrats: Generaldirektor Dr. Norbert Rollinger.\nVorstand: Dr. Edgar Martin, Vorsitzender;\nMichael Busch, Jan Dirk Dallmer, Jens Hasselbächer.\nSitz: Heidenkampsweg 102, 20097 Hamburg,\nHandelsregister Nr. HRB 76536, Amtsgericht Hamburg,\nUSt-IdNr. DE 218618884\nKRAVAG-SACH Versicherung des Deutschen Kraftverkehrs VaG\nVorsitzender des Aufsichtsrats: Horst Kottmeyer.\nVorstand: Dr. Edgar Martin, Vorsitzender; Michael Busch,\nJan Dirk Dallmer, Jens Hasselbächer, Bernd-Michael Melcher.\nSitz: Heidenkampsweg 102, 20097 Hamburg,\nHandelsregister Nr. HRB 6391, Amtsgericht Hamburg,\nUSt-IdNr. DE 118618359\nR+V Allgemeine Versicherung AG\nVorsitzender des Aufsichtsrats: Generaldirektor Dr. Norbert Rollinger.\nVorstand: Dr. Edgar Martin, Vorsitzender; Jens Hasselbächer,\nTillmann Lukosch, Julia Merkel, Marc René Michallet.\nSitz: Raiffeisenplatz 1, 65189 Wiesbaden,\nHandelsregister Nr. HRB 2188, Amtsgericht Wiesbaden,\nUSt-IdNr. DE 811198334\nR+V Allgemeine Versicherung AG\nNiederlassung Österreich\nHauptbevollmächtigter: Dkfm. Dr. Martin Beste.\nSitz: Wilhelmstraße 68, 1120 Wien,\nFirmenbuch: HG Wien Fn 351083z, UID-Nr. ATU 65994944,\nDVR 4003621\nHauptsitz: R+V Allgemeine Versicherung Aktiengesellschaft,\nRaiffeisenplatz 1, D-65189 Wiesbaden,\nHandelsregister Nr. HRB 2188, Amtsgericht Wiesbaden,\nUSt-IdNr. DE 811198334\nR+V Direktversicherung AG\nVorsitzender des Aufsichtsrats: Dr. Edgar Martin.\nVorstand: Andreas Bode, Frank Fehlauer.\nSitz: Raiffeisenplatz 1, 65189 Wiesbaden,\nHandelsregister Nr. HRB 23433, Amtsgericht Wiesbaden,\nUSt-IdNr. DE 259433224\nR+V Krankenversicherung AG\nVorsitzender des Aufsichtsrats: Generaldirektor Dr. Norbert Rollinger.\nVorstand: Claudia Andersch, Vorsitzende;\nNina Henschel, Dr. Matthias Ising, Ulrike Taube.\nSitz: Raiffeisenplatz 1, 65189 Wiesbaden,\nHandelsregister Nr. HRB 7094, Amtsgericht Wiesbaden,\nUSt-IdNr. DE 114106943",null,null,null,null,null,null,null,null,null,null,null,"R+V Lebensversicherung AG\nVorsitzender des Aufsichtsrats: Generaldirektor Dr. Norbert Rollinger.\nVorstand: Claudia Andersch, Vorsitzende; Jens Hasselbächer,\nTillmann Lukosch, Julia Merkel, Marc René Michallet.\nSitz: Raiffeisenplatz 1, 65189 Wiesbaden,\nHandelsregister Nr. HRB 7629, Amtsgericht Wiesbaden,\nUSt-IdNr. DE 811198342\nR+V Lebensversicherung a.G.\nVorsitzender des Aufsichtsrats: Generaldirektor Dr. Norbert Rollinger.\nVorstand: Claudia Andersch, Vorsitzende; Marc René Michallet.\nSitz: Eltville,\nHandelsregister Nr. HRB 17601, Amtsgericht Wiesbaden,\nUSt-IdNr. DE 114106919\n(rein informativ: Geschäftsanschrift = Raiffeisenplatz 1, 65189 Wiesbaden)\nR+V LUXEMBOURG LEBENSVERSICHERUNG S.A.\nNiederlassung Wiesbaden\nHauptbevollmächtigter: Stefan Huhn.\nSitz: Raiffeisenplatz 1, 65189 Wiesbaden,\nHandelsregister Nr. HRB 22011, Amtsgericht Wiesbaden,\nUSt-IdNr. DE 244915072\nR+V LUXEMBOURG LEBENSVERSICHERUNG S.A.\n(Aktiengesellschaft luxemburgischen Rechts),\nVorsitzende des Verwaltungsrats: Claudia Andersch.\nGeschäftsführung: Stefan Honecker, Wolfgang H. Sander.\nSitz: 4, rue Thomas Edison, L-1445 Luxemburg-Strassen,\nRegistre de Commerce et des Sociétés Luxembourg B 53899,\nUSt-IdNr. LU 16999808\nR+V Pensionsversicherung a.G.\nVorsitzender des Aufsichtsrats: Generaldirektor Dr. Norbert Rollinger.\nVorstand: Claudia Andersch, Vorsitzende; Marc René Michallet,\nstellvertretender Vorsitzender, Rüdiger Bach.\nSitz: Raiffeisenplatz 1, 65189 Wiesbaden,\nHandelsregister Nr. HRB 2174, Amtsgericht Wiesbaden,\nUSt-IdNr. DE 114106935\nR+V Pensionsfonds AG\nVorsitzender des Aufsichtsrats: Generaldirektor Dr. Norbert Rollinger.\nVorstand: Rüdiger Bach, Vorsitzender; Dr. Daniel Günnewig, Timm Höynck.\nSitz: Raiffeisenplatz 1, 65189 Wiesbaden,\nHandelsregister Nr. HRB 27503, Amtsgericht Wiesbaden,\nUSt-IdNr. DE 813378713\nR+V Pensionskasse AG\nVorsitzende des Aufsichtsrats: Claudia Andersch.\nVorstand: Rüdiger Bach, Lothar Jeck, Ulrike Taube.\nSitz: Raiffeisenplatz 1, 65189 Wiesbaden,\nHandelsregister Nr. HRB 22028 Amtsgericht Wiesbaden,\nUSt-IdNr. DE 247607454\nR+V Versicherung AG\nVorsitzender des Aufsichtsrats: Dr. Cornelius Riese.\nVorstand: Dr. Norbert Rollinger, Vorsitzender;\nClaudia Andersch, Jens Hasselbächer, Dr. Christoph Lamby,\nTillmann Lukosch, Dr. Edgar Martin, Julia Merkel, Marc René Michallet.\nSitz: Raiffeisenplatz 1, 65189 Wiesbaden,\nHandelsregister Nr. HRB 7934, Amtsgericht Wiesbaden,\nUSt-IdNr. DE 114106951\nVereinigte Tierversicherung Gesellschaft a.G.\nVorsitzender des Aufsichtsrats: Generaldirektor Dr. Norbert Rollinger.\nVorstand: Dr. Klaus Endres, Vorsitzender; Jens Hasselbächer.\nSitz: Raiffeisenplatz 1, 65189 Wiesbaden,\nHandelsregister Nr. HRB 2173, Amtsgericht Wiesbaden,\nUSt-IdNr. DE 114106927"]

{"sheet":"Merkblatt - Datenverarbeitung","index":11,"n_rows":0,"n_cols":0,"rows_kept":0,"cut":false,"hidden":false,"merged":[]}

{"sheet":"Tariftabelle","index":12,"n_rows":48,"n_cols":7,"rows_kept":48,"cut":false,"hidden":true,"merged":[[35,0,35,1],[37,0,37,1],[36,0,36,1],[38,0,38,1],[41,0,41,1]]}
["Haftzeit"]
[1,"12 Monate",1]
[2,"18 Monate"]
[3,"24 Monate"]
[]
["Selbstbehalt"]
[1,0,1]
[2,0.2]
[]
[null,"Prämienerhöhung zum 1.3.2020"]
[null,"um 50%"]
["SB",0,20,null,null,"Alte Prämien bis Ende Februar 2020"]
["Haftzeit"]
[12,{"$f":"ROUND(F14*1.5,4)","v":3.0000000000000001E-3},{"$f":"ROUND(G14*1.5,4)","v":2.3E-3},null,null,2E-3,1.5E-3]
[18,{"$f":"ROUND(F15*1.5,4)","v":3.8999999999999998E-3},2.8999999999999998E-3,null,null,2.5999999999999999E-3,1.9E-3]
[24,4.4999999999999997E-3,3.3E-3,null,null,3.0000000000000001E-3,2.2000000000000001E-3]
[]
[null,"Prämienerhöhung um weitere 15 % "]
[null,"zum 01.01.2022"]
["SB",0,20]
["Haftzeit"]
[12,3.5000000000000001E-3,2.5999999999999999E-3]
[18,4.4999999999999997E-3,3.3E-3]
[24,5.1999999999999998E-3,3.8E-3]
[]
[]
["Kombinationen"]
[1,"1+1",{"$f":"IF(AND(C2=1,C7=1),A28,IF(AND(C2=1,C7=2),A29,IF(AND(C2=2,C7=1),A30,IF(AND(C2=2,C7=2),A31,IF(AND(C2=3,C7=1),A32,IF(AND(C2=3,C7=2),A33,\"\"))))))","v":1},null,{"$f":"IF(C28=1,B22,IF(C28=2,C22,IF(C28=3,B23,IF(C28=4,C23,IF(C28=5,B24,IF(C28=6,C24,0))))))","v":3.5000000000000001E-3}]
[2,"1+2"]
[3,"2+1"]
[4,"2+2"]
[5,"3+1"]
[6,"3+2"]
[]
[]
["Laufzeitrabatt"]
["Vertragsbeginn",null,{"$f":"'Haftung 2'!B28","v":"00:00:00"}]
["Vertragsablauf",null,{"$f":"'Haftung 2'!AP26","v":"01.01.1903"}]
["Laufzeit (Tage)",null,{"$f":"DATEDIF($C$37,$C$38,\"d\")","v":1097}]
[]
[]
["Zahlungsweise",null,"Zuschlag"]
[1,"jährlich",0]
[2,"halbjährlich",0.03]
[4,"vierteljährlich",0.05]
[12,"monatlich",0.08]
[null,null,{"$f":"VLOOKUP('Haftung 2'!S28,Tariftabelle!A43:C46,3)","v":0},{"$f":"'Haftung 1'!N75*Tariftabelle!C47","v":0},"Zuschlag EUR"]
["Auf den RZZ wird derzeit verzichtet!!!"]

{"sheet":"Datenzuordnung","index":13,"n_rows":59,"n_cols":6,"rows_kept":59,"cut":false,"hidden":true,"merged":[[56,0,56,1],[33,3,33,4],[39,0,39,1],[46,3,46,4],[47,3,47,4],[50,0,50,1],[40,3,40,4]]}
["ja",1,null,null,"ja",1]
["nein",2,null,null,"nein",2]
[1,null,null,null,2]
[]
["Beitragssatz",null,null,3.0999999999999999E-3]
[]
[]
["Teilsumme",{"$f":"'Haftung 1'!B70*D5","v":0},null,{"$f":"IF(A3=2,0,(IF(ISERROR(IF('Fragen VN'!#REF!>0,'Fragen VN'!#REF!*Datenzuordnung!D5))=TRUE,0,'Fragen VN'!#REF!*Datenzuordnung!D5)))","v":0}]
[]
["Nettoprämie",{"$f":"'Haftung 1'!#REF!","v":{"$error":"#REF!"}}]
[]
["Anbindebonus",{"$f":"IF(E3=1,B10*0.05,0)","v":0}]
["Nettoprämie nach Anbindebonus",{"$f":"B10-B12","v":{"$error":"#REF!"}}]
[]
["ja",1]
["nein",2]
[]
[]
[]
[]
[]
["NawaRo ja/nein",null,"Tierseuche ja/nein"]
[1,null,1]
[]
[]
["Mehrkostenversicherung"]
[]
["Haftungszeitraum: 3 Monate"]
["Haftungszeitraum: 6 Monate"]
["Haftungszeitraum: 9 Monate"]
["Haftungszeitraum: 12 Monate"]
[]
[]
[1,"Herr",null,"Agrar-Police"]
[2,"Frau",null,"Antrag","VSNR"]
[3,"Herr und Frau",null,false,{"$f":"IF('Haftung 1'!Z45<>0,TRUE,FALSE)","v":false}]
[4,"Firma"]
[5]
[]
["Bündelrabatt"]
["Sach",false]
["Haftpflicht",false]
["Transport",false]
["Rechtsschutz",false]
["Ertragsschadenversicherung (EVT)",false]
["Techn. Versicherungen ",false]
["Unfallversicherung",false,null,"Spartenanzahl"]
["Ernteversicherung",false,null,{"$f":"COUNTIF(B:B,\"WAHR\")","v":0}]
["Ertragsschadenversicherung - AGP 4.0",false,null,{"$f":"IF(OR(D48=1,D48=2), 7.5%,0)","v":0},{"$f":"IF(OR(D48=3,D48>3),15%,0)","v":0}]
[]
["Arbeitsgebiete"]
[40]
[41]
[84]
[]
[]
["Arbeitsgebiete (EVT)"]
[21]
[22]

{"sheet":"Hektarwerte","index":14,"n_rows":61,"n_cols":5,"rows_kept":61,"cut":false,"hidden":false,"merged":[[56,4,57,4],[58,4,59,4],[36,4,37,4],[38,4,41,4],[42,4,47,4],[48,4,52,4],[53,4,54,4],[34,4,35,4],[0,1,0,4],[9,4,16,4],[24,4,26,4],[28,4,31,4],[32,4,33,4],[7,1,7,4],[19,4,23,4],[2,1,5,4],[1,1,1,4]]}
[null,"Mindest- und Höchsthektarwerte landwirtschaftlicher Kulturpflanzenarten "]
[null,"Wertespannen (Vorgaben) zum Erhalt des Unterversicherungsverzichts gemäß ASP-Zusatzklausel "]
[null,"ASP-Unterversicherungsklausel:\n1. die bei Antragsstellung zur Versicherungssummenermittlung angenommenen Hektarwerte dem tatsächlichen Wert zu diesem Zeitpunkt entsprechen,\n2. die Gesamtflächen der versicherten Kulturarten des Betriebes abgesichert werden und\n3. die Hektarwerte die vorgeschlagenen Mindestwerte erfüllen oder überschreiten. \nBei Nichterfüllen der genannten Voraussetzungen entfällt der Unterversicherungsverzicht. "]
[]
[]
[]
[]
[null,"Tabellenauszug: Die vollständige Zusammenstellung ist im Makler- und Außendienstportal hinterlegt!"]
[null,"Kulturpflanzenart","Mindesthektarwert","Höchsthektarwert ","Kategorien"]
[null,"Winterroggen / Winterweizen / Wintergerste / Wintertriticale / Winterhafer",800,4000,"Getreide"]
[null,"Sommerroggen / Sommerweizen / Sommergerste / Sommertriticale / Sommerhafer",800,3800]
[null,"Durum",800,3800]
[null,"Dinkel / Einkorn",800,4000]
[null,"Sommer-Halmfrucht-Gemenge",800,3800]
[null,"Winter-Halmfrucht-Gemenge",800,4000]
[null,"Getreide-Ganzpflanzen-Silage",800,3800]
[null,"Buchweizen / Hirse (zur Körnernutzung)",800,3800]
[null,"Bodenheu / Silage / Frischfutter / Ackergras",500,3000,"Grünland"]
[null,"Flachs / Hanf",800,1800,"Gespinstpflanzen"]
[null,"Erbsen / Speisebohnen / Ackerbohnen / Puffbohnen",800,3000,"Hülsenfrüchte zur Reife"]
[null,"Sojabohnen",800,3400]
[null,"Linsen / Wicken / Lupinen",800,3000]
[null,"Sonstige Hülsenfruchtgemenge",800,3400]
[null,"Hülsenfrucht-Halmfrucht-Gemenge",800,3000]
[null,"Pflanz-/ Saat-/ Speise-/ Industrie-/ Wirtschaftskartoffeln",2000,8000,"Kartoffeln"]
[null,"Frühkartoffeln",2000,10000]
[null,"Topinambur",600,3000]
[null,"Mais",1000,5000,"Mais"]
[null,"Winterraps / Winterrübsen",1000,3000,"Ölfrüchte"]
[null,"Sommerraps / Sommerrübsen",1000,2500]
[null,"Öllein / Mohn",1000,2500]
[null,"Sonnenblumen / Senf / Ölrettich / Sojabohnen zur Ölgewinnung",1000,2500]
[null,"Zuckerrüben / Futterrüben / Kohlrüben / Steckrüben",1600,10000,"Rüben"]
[null,"Chicorée zur Inulingewinnung",2100,10000]
[null,"Rübensamen / Möhrensamen",1000,2000,"Samen"]
[null,"Gräsereien / Futterkräuter zur Samengewinnung",1000,2000]
[null,"Sorghum / Sudangras / Miscanthus / Silphie / schnellwachsende Gehölze",1000,3300,"Energie- und Futterpflanzen"]
[null,"Gräser / Kräuter",600,3000]
[null,"Hopfen",3100,18000,"Wein-Hopfen-Tabak"]
[null,"Junganlagen (1. und 2. Jahr)",5000,30000]
[null,"Tabak",2600,12000]
[null,"Wein",4000,40000]
[null,"Erdbeeren / Äpfel / Birnen / Himbeeren / Blaubeeren / Heidelbeeren / Brombeeren",5000,35000,"Sonderkulturen"]
[null,"Kernobst Most / Steinobst Most / Holunderbeeren Most / Johannesbeeren Most",1500,10000]
[null,"Maronen / Nüsse",2600,7000]
[null,"Kirschen, Pflaumen, Zwetschgen, Mirabellen",2600,20000]
[null,"Pfirsiche / Nektarinen / Aprikose / Himbeeren / Johannesbeeren / Stachelbeeren",2600,30000]
[null,"Holunderbeeren",1500,30000]
[null,"Salat / Mangold",2100,20000,"Gemüse"]
[null,"Spinat",1300,20000]
[null,"Gurken / Kürbis / Paprika / Melonen / Zucchini / Auberginen / Spargel",2100,40000]
[null,"Tomaten",2100,50000]
[null,"Blumenkohl / Brokkoli / Chinakohl / Grünkohl / Kohl / Mais / Rhabarber",2100,20000]
[null,"Möhren / Radieschen / Rettich / Sellerie / Chicorée / Rettich",2100,20000,"Wurzel- und Knollengemüse,\n Sprossgemüse"]
[null,"Pastinaken / Petersilienwurzel / Rote und Weiße Beete / Schwarzwurzel / Zichoriewurzel",2100,20000]
[null,"Zwiebeln / Knoblauch / Lauch / Porree ",2100,15000,"Zwiebelgemüse"]
[null,"Bohnen / Dicke Bohnen zur Grünernte",1300,20000,"Hülsenfrüchte zur Grünernte"]
[null,"Erbsen zur Grünernte",1300,20000]
[null,"Dill / Estragon / Kümmel / Majoran / Petersilie / Schnittlauch / Sellerie / Johanniskraut",2100,20000,"Arznei- und Gewürzpflanzen"]
[null,"Kamille / Koriander",1300,20000]
[null,"Schnittblumen",2100,15000,"Sonstiges"]